{"text_format":"1","workbook":"xlsx","n_sheets":8,"sheets":["MATRIZ DE INDICADORES","----1","AJU-4","AJU-5","AJU-7","AJU-8","ACTUALIZACIONES","ITEM"],"not_rendered":{"charts":5,"images":4,"macros":1,"external_links":1,"defined_names":12,"comments":3,"pivot_tables":0},"unopened":[],"bounds":{"document_bytes":16777216,"sheet_cells":100000,"rows_first":2000,"rows_last":500,"rows_between":2000,"halvings":0,"cell_chars":16384,"cell_head_chars":4096},"cells_cut":0,"cells_raw":0,"read":"whole","date_system":"1900"}

{"sheet":"MATRIZ DE INDICADORES","index":0,"n_rows":41,"n_cols":21,"rows_kept":41,"cut":false,"hidden":false,"merged":[[1,1,4,2],[1,3,1,17],[1,18,1,20],[2,3,2,17],[2,18,2,20],[3,3,4,17],[3,18,3,20],[4,18,4,20],[12,2,26,2],[6,16,7,17],[9,1,10,20],[39,1,39,20],[40,1,40,20],[12,6,13,6],[12,12,13,12],[12,13,13,13],[12,14,13,14],[12,15,13,15],[12,16,13,16],[12,17,13,17],[14,6,18,6],[14,7,18,7],[24,6,26,6],[24,7,26,7],[12,3,26,3],[19,18,23,18],[19,19,23,19],[19,20,23,20],[14,8,18,8],[14,9,18,9],[14,10,18,10],[14,11,18,11],[14,17,18,17],[19,8,23,8],[19,9,23,9],[19,10,23,10],[19,11,23,11],[19,17,23,17],[12,1,26,1],[24,20,26,20],[24,18,26,18],[24,19,26,19],[12,5,26,5],[12,4,26,4],[24,8,26,8],[24,9,26,9],[24,10,26,10],[24,11,26,11],[24,17,26,17],[14,18,18,18],[14,19,18,19],[14,20,18,20],[19,6,23,6],[19,7,23,7]]}
[]
[null,null,null,"MACROPROCESO ESTRATÉGICO",null,null,null,null,null,null,null,null,null,null,null,null,null,null,"CÓDIGO: ESGr027"]
[null,null,null,"PROCESO GESTIÓN SISTEMAS INTEGRADOS - CALIDAD",null,null,null,null,null,null,null,null,null,null,null,null,null,null,"VERSIÓN: 8"]
[null,null,null,"MATRIZ DE MEDICIÓN Y SEGUIMIENTO A LOS PROCESOS DE GESTIÓN",null,null,null,null,null,null,null,null,null,null,null,null,null,null,"VIGENCIA: 2023-07-28"]
[null,null,null,null,null,null,null,null,null,null,null,null,null,null,null,null,null,null,"PÁGINA: 1 de 4"]
[]
[null,null,null,null,null,null,null,null,null,null,null,null,null,null,null,null,"FECHA DE ACTUALIZACIÓN:",null,"AÑO","MES","DÍA"]
[null,null,null,null,null,null,null,null,null,null,null,null,null,null,null,null,null,null,2023,8,16]
[]
[null,"ALINEACIÓN DE LOS INDICADORES CON LOS DOCUMENTOS ESTRATÉGICOS Y LOS OBJETIVOS DE CALIDAD"]
[]
[null,"PROCESO GESTIÓN","FRENTES DEL PLAN ESTRATÉGICO","LINEAMIENTOS DE LA POLÍTICA DE CALIDAD","OBJETIVOS DE CALIDAD","OBJETIVO GENERAL DEL PROCESO","OBJETIVOS ESPECÍFICOS","NOMBRE INDICADOR","FÓRMULA","TIPO DE INDICADOR","SEGUIMIENTO MEDICIÓN","META","ACTIVIDAD","RESPONSABLE DE LA ACTIVIDAD","¿QUÉ RECURSOS SE REQUIEREN?","FECHA EJECUCIÓN DE ACTIVIDADES","EVIDENCIA","¿CUÁNDO FINALIZARÁ?","RESULTADO ","NIVEL OBTENIDO","ACCESO"]
[null,"Jurídica","Frente Estratégico VI: Organización Universitaria inteligente con alma y corazón.","Se legitima como una organización social del conocimiento y el aprendizaje que se compromete con el pensamiento basado en riesgos y el mejoramiento continuo mediante buenas prácticas administrativas y académicas en búsqueda de la acreditación de programas y la acreditación institucional, enfocándose en el bienestar de la comunidad universitaria como factor constitutivo de la vida y la libertad y la consolidación de una organización universitaria inteligente con alma y corazón.","5. Mejorar continuamente el desempeño de los procesos a través de la implementación de buenas prácticas institucionales y de la aplicación de los mecanismos dispuestos por la Universidad de Cundinamarca, para la constitución de una organización universitaria inteligente con alma y corazón.","Apoyar a las diferentes dependencias de la Universidad de Cundinamarca, verificando el cumplimiento de requisitos legales para la contratación, emitiendo conceptos y representando judicial y extrajudicialmente a la Universidad de Cundinamarca, a través del estudio y aplicación permanente de la normatividad vigente con el fin de que todas las actividades realizadas por los diferentes procesos se encuentren ajustadas aL derecho.","Responder un 80% de todas las revisiones de las minutas y garantías de contratación directa, y a todos los requerimientos jurídicos de forma oportuna dentro de la plataforma Integradoc para el año 2023, con verificación permanente de los requisitos legales de acuerdo a la normatividad vigente y de los tiempos establecidos por la Universidad a través de seguimiento trimestral y semestral.  ","Oportunidad de respuesta en revisión minuta y garantía de contratación Directa","Número de solicitudes atendidas oportunamente *100 / Total de solicitudes cerradas","EFICACIA","Semestral",0.8,"1.1 Gestionar capacidad instalada (recurso humano) para la ejecución de las actividades\n\n1.2 Establecer mediante acto administrativo tiempos de respuesta a las solicitudes referentes\n\n1.3 Verificar y actualizar roles en Integradoc\n\n1.4 Implementar las actividades de los procedimientos AJUP01 ASESORÍA JURÍDICA, ABSP18 SUPERVISORES E INTERVENTORES (Actividad 3) y ABSP01 ADQUISICIÓN DE BIENES, SERVICIOS U OBRAS CONTRATACIÓN DIRECTA (Actividad 16)\n\n1.5 Evaluar mediante los indicadores establecidos\n\n","1.1 Dirección Jurídica\n\n1.2 Secretaría General - Vicerrectoría Administrativa y Financiera\n\n1.3 Dirección Jurídica - Integradoc\n\n1.4 Dirección Jurídica\n\n1.5 Dirección Jurídica","1.1 Financiero\n\n1.2 Recurso Humano, Herramientas Ofimáticas\n\n1.3 Recurso Humano, Herramientas Ofimáticas, Herramienta Integradoc, Conexión a internet\n\n1.4 Recurso Humano, Herramientas Ofimáticas, Herramienta Integradoc, Conexión a internet\n\n1.5 Recurso Humano, Información documentada","1.1 enero 2023\n\n1.2 09/08/2021 - \n03/06/2022\n\n1.3 2023\n\n1.4 2023\n\n1.5 marzo / junio / septiembre / diciembre y Semestral 2023","1.1 Proyección presupuestal - Contratos\n\n1.2 Circular No. 008 de 2021  -  Circular No. 006 de 2022\n\n1.3 Correos electrónicos\n\n1.4 Registro Integradoc, Correo Electrónico Institucional\n\n1.5 Reporte de los indicadores - Fichas técnicas","2023-12-01",0.93,"EXCELENTE","AJU-4"]
[null,null,null,null,null,null,null,"Oportunidad en los términos de respuesta frente a los requerimientos jurídicos (Integradoc)","N° solicitudes atendidas en los términos establecidos (requerimientos jurídicos por Integradoc) *100 / Total de solicitudes contestadas, allegadas como requerimientos jurídicos por Integradoc","EFICACIA","Trimestral",0.8,null,null,null,null,null,null,0.78,"BUENO ","AJU-7"]
[null,null,null,null,null,null,"Dar respuesta oportuna en un 85% para el año 2023 a toda la revisión de términos de referencia y minuta de contratación Público-Privada cumpliendo los lineamientos definidos por la Universidad con un seguimiento semestral.","Oportunidad de respuesta en revisión de términos de referencia y minuta de contratación Publico-Privada","Número de solicitudes atendidas oportunamente * 100 / Total de solicitudes cerradas","EFICACIA","Semestral",0.85,"2.1 Gestionar capacidad instalada (recurso humano) para la ejecución de las actividades","Dirección Jurídica","Financiero","2023-01-01","Proyección presupuestal - Contratos","2023-12-01",0.92,"EXCELENTE","AJU-5"]
[null,null,null,null,null,null,null,null,null,null,null,null,"2.2 Establecer mediante acto administrativo tiempos de respuesta a las solicitudes referentes","Secretaría General - Vicerrectoría Administrativa y Financiera","Recurso Humano","09/08/2021\n03/06/2022","Circular No. 008 de 2021\nCircular No. 006 de 2022"]
[null,null,null,null,null,null,null,null,null,null,null,null,"2.3 Verificar y actualizar roles en Integradoc","Dirección Jurídica - Integradoc","Recurso Humano, Herramientas Ofimáticas, Herramienta Integradoc, Conexión a internet",2023,"Correos electrónicos"]
[null,null,null,null,null,null,null,null,null,null,null,null,"2.4 Implementar las actividades del procedimiento ABSP15 (Actividad 8 y 22)","Dirección Jurídica","Recurso Humano, Herramientas Ofimáticas, Herramienta Integradoc, Conexión a internet",2023,"Registro Integradoc, Correo Electrónico notificación"]
[null,null,null,null,null,null,null,null,null,null,null,null,"2.5 Evaluar mediante indicador establecido","Dirección Jurídica","Recurso Humano, Información documentada","marzo / junio / septiembre / diciembre, Semestral 2023","Reporte del indicador - Ficha técnica"]
[null,null,null,null,null,null,"Gestionar durante el 2023 la recuperación de cartera para obtener del total un valor mínimo a favor de 80%, con diligencia pertinente a los procesos judiciales."," Proceso Jurídico en Recuperación de cartera","Valor Recuperado de cartera*100/Valor Total en Cartera","EFICACIA","Anual",0.8,"3.1 Recepcionar títulos valores por parte del área de Financiera","Dirección Financiera -Dirección Jurídica","Base de datos documentada, Recurso Humano, Herramientas ofimáticas","II Semestre 2022","Títulos Valores, Correo Electrónico Institucional","2023-12-01","ANUAL",null,"AJU-6"]
[null,null,null,null,null,null,null,null,null,null,null,null,"3.2 Verificar la completitud de la información de los títulos valores","Dirección Jurídica","Base de datos documentada, Recurso Humano, Herramientas ofimáticas",2022,"Títulos Valores, Correo Electrónico Institucional"]
[null,null,null,null,null,null,null,null,null,null,null,null,"3.3 Gestionar, aprobar y suscribir poder con las formalidades de\nley, poder para representar judicialmente a la Universidad ","Secretaría General","Títulos Valores, Recurso Humano, Herramientas ofimáticas","II Semestre 2022, 2023","Correo Electrónico, y AJUr002 Poder"]
[null,null,null,null,null,null,null,null,null,null,null,null,"3.4 Implementar las actividades de los procedimientos AFIP31 FRACCIONAMIENTO DE MATRICULA Y RECUPERACIÓN DE CARTERA (Actividades 42-44) y AJUP05 REPRESENTACIÓN JUDICIAL Y ADMINISTRATIVA","Dirección Jurídica","Títulos Valores, Recurso Humano, Herramientas ofimáticas","II Semestre 2022, 2023","Trámite judicial"]
[null,null,null,null,null,null,null,null,null,null,null,null,"3.5 Evaluar mediante indicador establecido","Dirección Jurídica","Recurso Humano, Información documentada","2023-12-01","Reporte del indicador - Ficha técnica"]
[null,null,null,null,null,null,"Adelantar las diligencias judiciales en pro de ganar mínimo el 80% de las tutelas en que la Universidad es la accionada durante el 2023, con seguimiento trimestral.","Eficacia en la defensa judicial de las acciones de tutela en que la Universidad es la accionada","(No.  tutelas ganadas/Total tutelas accionadas archivadas) *100 ","EFICACIA","Trimestral",0.8,"4.1 Recepcionar las tutelas","Dirección Jurídica-Dependencias de la Universidad","Recurso Humano, Información documentada, Herramientas Ofimáticas",2023,"Correo Electrónico","2023-12-01",1,"EXCELENTE","AJU-8"]
[null,null,null,null,null,null,null,null,null,null,null,null,"4.2 Implementar las actividades del procedimiento AJUP05 (Actividad 9)","Dirección Jurídica","Recurso Humano, Información documentada, Herramientas Ofimáticas",2023,"Correo Electrónico, ADOr001, AJUr013"]
[null,null,null,null,null,null,null,null,null,null,null,null,"4.3 Evaluar mediante indicador establecido","Dirección Jurídica","Recurso Humano, Información documentada","2023-12-01","Reporte del indicador - Ficha técnica"]
[]
[]
[]
[]
[]
[]
[]
[]
[]
[]
[]
[]
[null,"Diagonal 18 No. 20-29 Fusagasugá – Cundinamarca\nTeléfono (601)  8281483 Línea Gratuita 018000180414\nwww.ucundinamarca.edu.co   E-mail:  info@ucundinamarca.edu.co\nNIT: 890.680.062-2                                                                             "]
[null,"Documento controlado por el Sistema de Gestión de la Calidad\nAsegúrese que corresponde a la última versión consultando el Portal Institucional"]

{"sheet":"----1","index":1,"n_rows":99,"n_cols":15,"rows_kept":99,"cut":false,"hidden":true,"merged":[[56,2,56,5],[56,6,56,9],[56,10,56,14],[59,2,59,5],[59,6,59,9],[59,10,59,14],[57,2,57,5],[57,6,57,9],[57,10,57,14],[58,2,58,5],[58,6,58,9],[58,10,58,14],[54,2,54,5],[54,6,54,9],[54,10,54,14],[55,2,55,5],[55,6,55,9],[55,10,55,14],[26,20,27,20],[26,9,26,14],[26,17,27,17],[26,18,27,19],[53,2,53,5],[53,6,53,9],[53,10,53,14],[41,9,41,14],[51,2,51,14],[52,2,52,5],[52,6,52,9],[52,10,52,14],[44,2,44,14],[26,21,27,21],[27,9,32,14],[26,2,42,8],[22,11,23,12],[19,9,21,10],[19,11,19,14],[22,7,23,8],[22,4,23,6],[18,17,25,17],[18,18,25,19],[18,20,25,20],[22,13,23,14],[25,2,25,14],[33,9,33,14],[34,9,39,14],[40,9,40,14],[16,15,17,15],[16,16,17,16],[16,17,17,17],[16,18,17,21],[18,21,25,21],[17,4,18,10],[17,11,18,12],[17,13,18,14],[17,2,18,3],[22,2,23,3],[22,9,23,10],[19,2,21,3],[19,7,21,8],[19,4,21,6],[9,2,10,14],[11,2,11,3],[11,4,11,7],[11,8,11,9],[11,10,11,14],[1,1,3,2],[4,2,7,3],[4,4,4,11],[4,12,4,14],[5,4,5,11],[5,12,5,14],[6,4,7,11],[6,12,6,14],[7,12,7,14],[12,2,12,3],[12,4,12,14],[13,2,13,3],[13,4,13,14],[14,2,14,14],[15,2,15,14],[16,2,16,3],[16,11,16,12],[16,13,16,14],[16,7,16,8],[16,9,16,10],[16,4,16,6]]}
[]
[null,"      REGRESAR"]
[]
[]
[null,null,null,null,"MACROPROCESO ESTRATÉGICO",null,null,null,null,null,null,null,"CÓDIGO: ESGr027"]
[null,null,null,null,"PROCESO GESTIÓN SISTEMAS INTEGRADOS",null,null,null,null,null,null,null,"VERSIÓN: 7"]
[null,null,null,null,"MATRIZ DE MEDICIÓN Y SEGUIMIENTO A LOS PROCESOS DE GESTIÓN",null,null,null,null,null,null,null,"VIGENCIA: 2020-03-20"]
[null,null,null,null,null,null,null,null,null,null,null,null,"PÁGINA: 1 de 1"]
[]
[null,null,"FICHA DE INDICADOR"]
[]
[null,null,"MACROPROCESO",null,null,null,null,null,"NOMBRE DEL INDICADOR"]
[null,null,"PROCESO GESTIÓN"]
[null,null,"RESPONSABLE DE MEDICIÓN"]
[]
[null,null,"1. COMPORTAMIENTO DE INDICADOR"]
[null,null,"CLASIFICACIÓN DE LA MEDICIÓN ",null,2,null,null,"TIPO DE INDICADOR",null,null,null,"META"]
[null,null,"FORMULA",null,null,null,null,null,null,null,null,"UNIDAD DE MEDIDA"]
[]
[null,null,"TENDENCIA",null,null,null,null,"NIVEL DE SEGREGACIÓN *",null,null,null,"ESCALA"]
[null,null,null,null,null,null,null,null,null,null,null,"Deficiente","Aceptable","Bueno","Excelente"]
[]
[null,null,"ORIGEN DE DATOS",null,null,null,null,"FRECUENCIA DE LA MEDICIÓN",null,"TRIMESTRAL",null,"FRECUENCIA DE RESULTADO",null,"ANUAL"]
[]
[]
[null,null,"RESULTADOS"]
[null,null,null,null,null,null,null,null,null,"ANÁLISIS DE DATOS\nLos datos indican un crecimiento en los acompañamientos entre el primer trimestre y \nel segundo trimestre de mas del 100%, por la contratación del personal de la oficina\nEn el tercer trimestre se muestra un decrecimiento con respecto al periodo anterior\npor las vacaciones a mitad de año, las personas se reintegraron entre julio y agosto."]
[]
[]
[]
[]
[]
[]
[null,null,null,null,null,null,null,null,null,"ACCIÓN FORMULADA\nReformular la meta para el próximo año dependiendo de los recursos asignados."]
[]
[]
[]
[]
[]
[]
[null,null,null,null,null,null,null,null,null,"RESPONSABLE "]
[null,null,null,null,null,null,null,null,null,{"$f":"E14","v":0}]
[]
[]
[null,null,"PERIODO DE EVALUACIÓN"]
[null,null,"MES",{"$f":"IF(J23=\"MENSUAL\",\"ENERO\",IF(J23=\"TRIMESTRAL\",\"MARZO\",IF(J23=\"SEMESTRAL\",\"JUNIO\",IF(J23=\"ANUAL\",YEAR(TODAY()),\"\"))))","v":"MARZO"},{"$f":"IF(J23=\"MENSUAL\",\"FEBRERO\",IF(J23=\"TRIMESTRAL\",\"JUNIO\",IF(J23=\"SEMESTRAL\",\"DICIEMBRE\",\"\")))","v":"JUNIO"},{"$f":"IF(J23=\"MENSUAL\",\"MARZO\",IF(J23=\"TRIMESTRAL\",\"SEPTIEMBRE\",\"\"))","v":"SEPTIEMBRE"},{"$f":"IF(J23=\"MENSUAL\",\"ABRIL\",IF(J23=\"TRIMESTRAL\",\"DICIEMBRE\",\"\"))","v":"DICIEMBRE"},{"$f":"IF(J23=\"MENSUAL\",\"MAYO\",\"\")","v":""},{"$f":"IF(J23=\"MENSUAL\",\"JUNIO\",\"\")","v":""},{"$f":"IF(J23=\"MENSUAL\",\"JULIO\",\"\")","v":""},{"$f":"IF(J23=\"MENSUAL\",\"AGOSTO\",\"\")","v":""},{"$f":"IF(J23=\"MENSUAL\",\"SEPTIEMBRE\",\"\")","v":""},{"$f":"IF(J23=\"MENSUAL\",\"OCTUBRE\",\"\")","v":""},{"$f":"IF(J23=\"MENSUAL\",\"NOVIEMBRE\",\"\")","v":""},{"$f":"IF(J23=\"MENSUAL\",\"DICIEMBRE\",\"\")","v":""}]
[null,null,{"$f":"G18","v":0}]
[null,null,{"$f":"G19","v":0}]
[null,null,"VALOR ",{"$f":"IFERROR(IF($E$17=1,D47/D48,IF($E$17=2,D47,\"\")),\"\")","v":0},{"$f":"IFERROR(IF($E$17=1,E47/E48,IF($E$17=2,E47,\"\")),\"\")","v":0},0,0,0,0,0,0,0,0,0,0]
[null,null,"META PONDERADA",{"$f":"IF(AND(N23=\"ANUAL\",J23=\"MENSUAL\"),N17/12,IF(AND(N23=\"ANUAL\",J23=\"TRIMESTRAL\"),N17/4,IF(AND(N23=\"ANUAL\",J23=\"SEMESTRAL\"),N17/2,IF(AND(N23=\"ANUAL\",J23=\"ANUAL\"),N17,IF(AND(N23=\"SEMESTRAL\",J23=\"MENSUAL\"),N17/6,IF(AND(N23=\"SEMESTRAL\",J23=\"TRIMESTRAL\"),N17/2,IF(AND(N23=\"SEMESTRAL\",J23=\"SEMESTRAL\"),N17,IF(AND(N23=\"SEMESTRAL\",J23=\"ANUAL\"),\"REVISAR FRECUENCIAS\",IF(AND(N23=\"TRIMESTRAL\",J23=\"MENSUAL\"),N17/3,IF(AND(N23=\"TRIMESTRAL\",J23=\"TRIMESTRAL\"),N17,IF(AND(N23=\"TRIMESTRAL\",J23=\"SEMESTRAL\"),\"REVISAR FRECUENCIAS\",IF(AND(N23=\"TRIMESTRAL\",J23=\"ANUAL\"),\"REVISAR FRECUENCIAS\",IF(AND(N23=\"MENSUAL\",J23=\"MENSUAL\"),N17,IF(AND(N23=\"MENSUAL\",J23=\"TRIMESTRAL\"),\"REVISAR FRECUENCIAS\",IF(AND(N23=\"MENSUAL\",J23=\"SEMESTRAL\"),\"REVISAR FRECUENCIAS\",IF(AND(N23=\"MENSUAL\",J23=\"ANUAL\"),\"REVISAR FRECUENCIAS\",\"\"))))))))))))))))","v":0},{"$f":"IF(AND(N23=\"ANUAL\",J23=\"MENSUAL\"),N17/12+D50,IF(AND(N23=\"ANUAL\",J23=\"TRIMESTRAL\"),N17/4+D50,IF(AND(N23=\"ANUAL\",J23=\"SEMESTRAL\"),N17/2+D50,IF(AND(N23=\"SEMESTRAL\",J23=\"MENSUAL\"),N17/6+D50,IF(AND(N23=\"SEMESTRAL\",J23=\"TRIMESTRAL\"),N17/2+D50,IF(AND(N23=\"SEMESTRAL\",J23=\"SEMESTRAL\"),N17,IF(AND(N23=\"TRIMESTRAL\",J23=\"MENSUAL\"),N17/3+D50,IF(AND(N23=\"TRIMESTRAL\",J23=\"TRIMESTRAL\"),N17,IF(AND(N23=\"MENSUAL\",J23=\"MENSUAL\"),N17,\"\")))))))))","v":0},{"$f":"IF(AND(N23=\"ANUAL\",J23=\"MENSUAL\"),N17/12+E50,IF(AND(N23=\"ANUAL\",J23=\"TRIMESTRAL\"),N17/4+E50,IF(AND(N23=\"SEMESTRAL\",J23=\"MENSUAL\"),N17/6+E50,IF(AND(N23=\"SEMESTRAL\",J23=\"TRIMESTRAL\"),N17/2,IF(AND(N23=\"TRIMESTRAL\",J23=\"MENSUAL\"),N17/3+E50,IF(AND(N23=\"TRIMESTRAL\",J23=\"TRIMESTRAL\"),N17,IF(AND(N23=\"MENSUAL\",J23=\"MENSUAL\"),N17,\"\")))))))","v":0},{"$f":"IF(AND(N23=\"ANUAL\",J23=\"MENSUAL\"),N17/12+F50,IF(AND(N23=\"ANUAL\",J23=\"TRIMESTRAL\"),N17/4+F50,IF(AND(N23=\"SEMESTRAL\",J23=\"MENSUAL\"),N17/6+F50,IF(AND(N23=\"SEMESTRAL\",J23=\"TRIMESTRAL\"),N17/2+F50,IF(AND(N23=\"TRIMESTRAL\",J23=\"MENSUAL\"),N17/3,IF(AND(N23=\"TRIMESTRAL\",J23=\"TRIMESTRAL\"),N17,IF(AND(N23=\"MENSUAL\",J23=\"MENSUAL\"),N17,\"\")))))))","v":0},{"$f":"IF(AND($N$23=\"ANUAL\",$J$23=\"MENSUAL\"),$N$17/12+G50,IF(AND(N23=\"SEMESTRAL\",J23=\"MENSUAL\"),N17/6+G50,IF(AND(N23=\"TRIMESTRAL\",J23=\"MENSUAL\"),N17/3+G50,IF(AND(N23=\"MENSUAL\",J23=\"MENSUAL\"),N17,\"\"))))","v":""},{"$f":"IF(AND($N$23=\"ANUAL\",$J$23=\"MENSUAL\"),$N$17/12+H50,IF(AND(N23=\"SEMESTRAL\",J23=\"MENSUAL\"),N17/6+H50,IF(AND(N23=\"TRIMESTRAL\",J23=\"MENSUAL\"),N17/3+H50,IF(AND(N23=\"MENSUAL\",J23=\"MENSUAL\"),N17,\"\"))))","v":""},{"$f":"IF(AND($N$23=\"ANUAL\",$J$23=\"MENSUAL\"),$N$17/12+I50,IF(AND(N23=\"SEMESTRAL\",J23=\"MENSUAL\"),N17/6,IF(AND(N23=\"TRIMESTRAL\",J23=\"MENSUAL\"),N17/3,IF(AND(N23=\"MENSUAL\",J23=\"MENSUAL\"),N17,\"\"))))","v":""},{"$f":"IF(AND($N$23=\"ANUAL\",$J$23=\"MENSUAL\"),$N$17/12+J50,IF(AND(N23=\"SEMESTRAL\",J23=\"MENSUAL\"),N17/6+J50,IF(AND(N23=\"TRIMESTRAL\",J23=\"MENSUAL\"),N17/3+J50,IF(AND(N23=\"MENSUAL\",J23=\"MENSUAL\"),N17,\"\"))))","v":""},{"$f":"IF(AND($N$23=\"ANUAL\",$J$23=\"MENSUAL\"),$N$17/12+K50,IF(AND(N23=\"SEMESTRAL\",J23=\"MENSUAL\"),N17/6+K50,IF(AND(N23=\"TRIMESTRAL\",J23=\"MENSUAL\"),N17/3+K50,IF(AND(N23=\"MENSUAL\",J23=\"MENSUAL\"),N17,\"\"))))","v":""},{"$f":"IF(AND($N$23=\"ANUAL\",$J$23=\"MENSUAL\"),$N$17/12+L50,IF(AND(N23=\"SEMESTRAL\",J23=\"MENSUAL\"),N17/6+L50,IF(AND(N23=\"TRIMESTRAL\",J23=\"MENSUAL\"),N17/3,IF(AND(N23=\"MENSUAL\",J23=\"MENSUAL\"),N17,\"\"))))","v":""},{"$f":"IF(AND($N$23=\"ANUAL\",$J$23=\"MENSUAL\"),$N$17/12+M50,IF(AND(N23=\"SEMESTRAL\",J23=\"MENSUAL\"),N17/6+M50,IF(AND(N23=\"TRIMESTRAL\",J23=\"MENSUAL\"),N17/3+M50,IF(AND(N23=\"MENSUAL\",J23=\"MENSUAL\"),N17,\"\"))))","v":""},{"$f":"IF(AND($N$23=\"ANUAL\",$J$23=\"MENSUAL\"),$N$17/12+N50,IF(AND(N23=\"SEMESTRAL\",J23=\"MENSUAL\"),N17/6+N50,IF(AND(N23=\"TRIMESTRAL\",J23=\"MENSUAL\"),N17/3+N50,IF(AND(N23=\"MENSUAL\",J23=\"MENSUAL\"),N17,\"\"))))","v":""}]
[]
[null,null,"NIVEL DE SEGREGACIÓN *"]
[null,null,"UNIDAD SEGREGADA (Ej. Facultad, Programa Académico, Área)",null,null,null,"RESULTADO",null,null,null,"ANALISIS DE DATOS SEGREGADO"]
[]
[]
[]
[]
[]
[]
[]
[]
[]
[]
[]
[]
[]
[]
[]
[]
[]
[]
[]
[null,null,null,null,null,null,"Estratégico",null,null,"Eficacia"]
[null,null,null,null,null,null,"Misional",null,null,"Eficiencia"]
[null,null,null,null,null,null,"Apoyo",null,null,"Acreditación"]
[null,null,null,null,null,null,"Seguimiento, Medición, Análisis y Evaluación",null,null,"Positiva"]
[null,null,null,null,null,null,"Direccionamiento Estratégico",null,null,"Negativa"]
[null,null,null,null,null,null,"Planeación Institucional",null,null,"Por Unidad Regional"]
[null,null,null,null,null,null,"Proyectos Especiales y Relaciones Interinstitucionales",null,null,"Por Facultad"]
[null,null,null,null,null,null,"Sistemas Integrados",null,null,"Por Programa Académico"]
[null,null,null,null,null,null,"Autoevaluación y Acreditación",null,null,"Por área"]
[null,null,null,null,null,null,"Comunicaciones",null,null,"Por Laboratorio"]
[null,null,null,null,null,null,"Formación y Aprendizaje",null,null,"Otros"]
[null,null,null,null,null,null,"Ciencia, Tecnología e Innovación",null,null,"No Aplica"]
[null,null,null,null,null,null,"Interacción Social Universitaria"]
[null,null,null,null,null,null,"Bienestar Universitario"]
[null,null,null,null,null,null,"Admisiones y Registro"]
[null,null,null,null,null,null,"Graduados"]
[null,null,null,null,null,null,"Dialogando con el Mundo"]
[null,null,null,null,null,null,"Talento Humano"]
[null,null,null,null,null,null,"Jurídica"]
[null,null,null,null,null,null,"Financiera"]
[null,null,null,null,null,null,"Sistemas y Tecnología"]
[null,null,null,null,null,null,"Bienes y Servicios"]
[null,null,null,null,null,null,"Documental"]
[null,null,null,null,null,null,"Apoyo Académico"]
[null,null,null,null,null,null,"Control Interno"]
[null,null,null,null,null,null,"Control Disciplinario"]
[null,null,null,null,null,null,"Servicio de Atención al Ciudadano"]

{"sheet":"AJU-4","index":2,"n_rows":94,"n_cols":15,"rows_kept":94,"cut":false,"hidden":false,"merged":[[53,2,53,5],[53,6,53,9],[53,10,53,14],[1,1,3,2],[4,2,7,3],[4,4,4,11],[4,12,4,14],[5,4,5,11],[5,12,5,14],[6,4,7,11],[6,12,6,14],[7,12,7,14],[15,2,15,14],[8,2,8,14],[9,2,10,14],[11,2,11,3],[11,4,11,7],[11,8,11,9],[11,10,11,14],[12,2,12,3],[12,4,12,14],[13,2,13,3],[13,4,13,14],[14,2,14,14],[16,15,17,15],[17,2,18,3],[17,4,17,5],[17,6,17,10],[17,11,18,12],[17,13,18,14],[18,4,18,5],[18,6,18,10],[16,2,16,3],[16,4,16,6],[16,7,16,8],[16,9,16,10],[16,11,16,12],[16,13,16,14],[19,2,21,3],[19,4,21,6],[19,7,21,8],[19,9,21,10],[19,11,19,14],[22,13,23,14],[23,2,23,3],[23,4,23,6],[25,2,25,14],[26,2,42,8],[26,9,26,14],[42,9,42,14],[22,2,22,3],[22,4,22,6],[22,7,23,8],[22,9,23,10],[22,11,23,12],[41,9,41,14],[44,2,44,14],[51,2,51,14],[52,2,52,5],[52,6,52,9],[52,10,52,14],[26,15,27,15],[27,9,32,14],[33,9,33,14],[34,9,39,14],[40,9,40,14],[55,2,55,5],[55,6,55,9],[55,10,55,14],[54,2,54,5],[54,6,54,9],[54,10,54,14]]}
[]
[null,"      REGRESAR"]
[]
[]
[null,null,null,null,"MACROPROCESO ESTRATÉGICO",null,null,null,null,null,null,null,"CÓDIGO: ESGr027"]
[null,null,null,null,"PROCESO GESTIÓN SISTEMAS INTEGRADOS - CALIDAD",null,null,null,null,null,null,null,"VERSIÓN: 8"]
[null,null,null,null,"MATRIZ DE MEDICIÓN Y SEGUIMIENTO A LOS PROCESOS DE GESTIÓN",null,null,null,null,null,null,null,"VIGENCIA: 2023-07-28"]
[null,null,null,null,null,null,null,null,null,null,null,null,"PÁGINA: 1 de 4"]
[]
[null,null,"FICHA DE INDICADOR"]
[]
[null,null,"MACROPROCESO",null,"Apoyo",null,null,null,"NOMBRE DEL INDICADOR",null,"Oportunidad de respuesta en revisión minuta y garantía de contratación Directa"]
[null,null,"PROCESO GESTIÓN",null,"Jurídica"]
[null,null,"RESPONSABLE DE MEDICIÓN",null,"Director(a) Jurídica"]
[]
[null,null,"1. COMPORTAMIENTO DE INDICADOR"]
[null,null,"CLASIFICACIÓN DE LA MEDICIÓN",null,1,null,null,"TIPO DE INDICADOR",null,"Eficacia",null,"META",null,0.8]
[null,null,"FORMULA",null,"NUMERADOR",null,"Número de solicitudes atendidas oportunamente *100",null,null,null,null,"UNIDAD DE MEDIDA",null,"Porcentaje"]
[null,null,null,null,"DENOMINADOR",null,"Total de solicitudes cerradas"]
[null,null,"TENDENCIA",null,"Positiva",null,null,"NIVEL DE SEGREGACIÓN *",null,"Otros",null,"ESCALA"]
[null,null,null,null,null,null,null,null,null,null,null,"Deficiente","Aceptable","Bueno","Excelente"]
[null,null,null,null,null,null,null,null,null,null,null,"0% - 40,9%","41% - 60,9%","61% - 79,9% ",">=80%"]
[null,null,"ORIGEN DE DATOS NUMERADOR",null,"Data Integradoc",null,null,"FRECUENCIA DE LA MEDICIÓN",null,"SEMESTRAL",null,"FRECUENCIA DE RESULTADO",null,"SEMESTRAL"]
[null,null,"ORIGEN DE DATOS DENOMINADOR",null,"Data Integradoc"]
[]
[null,null,"RESULTADOS"]
[null,null,null,null,null,null,null,null,null,"ANÁLISIS DE DATOS"]
[null,null,null,null,null,null,null,null,null,"Se recibieron 211 solicitudes, las cuales se discriminan así: 154 Minutas y 57 Aprobaciones de Garantía relacionadas con la contratación directa en el segundo semestre del 2023, de las cuales se atendieron oportunamente 197 con un cumplimiento del indicador de 93% superando la meta ponderada."]
[]
[]
[]
[]
[]
[null,null,null,null,null,null,null,null,null,"ACCIÓN FORMULADA"]
[null,null,null,null,null,null,null,null,null,"Concorde con el análisis de datos, se evidencia el cumplimiento de la meta propuesta, sin embargo es indispensable recordará a los abogados (as) de la Dirección Jurídica el cumplimiento de los términos de respuesta establecidos en la circular 006 del 2022-06-03 emitida por la Vicerrectoría Administrativa y Financiera, con la finalidad del que desarrollo de la contratación sea eficiente y oportuno, así como socializar con las dependencias la importancia de atender los ajustes en el menor tiempo posible."]
[]
[]
[]
[]
[]
[null,null,null,null,null,null,null,null,null,"RESPONSABLE "]
[null,null,null,null,null,null,null,null,null,{"$f":"E14","v":"Director(a) Jurídica"}]
[]
[]
[null,null,"PERIODO DE EVALUACIÓN"]
[null,null,"MES",{"$f":"IF(J23=\"MENSUAL\",\"ENERO\",IF(J23=\"TRIMESTRAL\",\"MARZO\",IF(J23=\"SEMESTRAL\",\"JUNIO\",IF(J23=\"ANUAL\",YEAR(TODAY()),\"\"))))","v":"JUNIO"},{"$f":"IF(J23=\"MENSUAL\",\"FEBRERO\",IF(J23=\"TRIMESTRAL\",\"JUNIO\",IF(J23=\"SEMESTRAL\",\"DICIEMBRE\",\"\")))","v":"DICIEMBRE"},{"$f":"IF(J23=\"MENSUAL\",\"MARZO\",IF(J23=\"TRIMESTRAL\",\"SEPTIEMBRE\",\"\"))","v":""},{"$f":"IF(J23=\"MENSUAL\",\"ABRIL\",IF(J23=\"TRIMESTRAL\",\"DICIEMBRE\",\"\"))","v":""},{"$f":"IF(J23=\"MENSUAL\",\"MAYO\",\"\")","v":""},{"$f":"IF(J23=\"MENSUAL\",\"JUNIO\",\"\")","v":""},{"$f":"IF(J23=\"MENSUAL\",\"JULIO\",\"\")","v":""},{"$f":"IF(J23=\"MENSUAL\",\"AGOSTO\",\"\")","v":""},{"$f":"IF(J23=\"MENSUAL\",\"SEPTIEMBRE\",\"\")","v":""},{"$f":"IF(J23=\"MENSUAL\",\"OCTUBRE\",\"\")","v":""},{"$f":"IF(J23=\"MENSUAL\",\"NOVIEMBRE\",\"\")","v":""},{"$f":"IF(J23=\"MENSUAL\",\"DICIEMBRE\",\"\")","v":""}]
[null,null,{"$f":"G18","v":"Número de solicitudes atendidas oportunamente *100"},225,197]
[null,null,{"$f":"G19","v":"Total de solicitudes cerradas"},242,211]
[null,null,"VALOR ",{"$f":"IFERROR(IF($E$17=1,D47/D48,IF($E$17=2,D47,\"\")),\"\")","v":0.92975206611570249},{"$f":"IFERROR(IF($E$17=1,E47/E48,IF($E$17=2,E47,\"\")),\"\")","v":0.93364928909952605},"","","","","","","","","",""]
[null,null,"META PONDERADA",{"$f":"IF(AND(N23=\"ANUAL\",J23=\"MENSUAL\"),N17/12,IF(AND(N23=\"ANUAL\",J23=\"TRIMESTRAL\"),N17/4,IF(AND(N23=\"ANUAL\",J23=\"SEMESTRAL\"),N17/2,IF(AND(N23=\"ANUAL\",J23=\"ANUAL\"),N17,IF(AND(N23=\"SEMESTRAL\",J23=\"MENSUAL\"),N17/6,IF(AND(N23=\"SEMESTRAL\",J23=\"TRIMESTRAL\"),N17/2,IF(AND(N23=\"SEMESTRAL\",J23=\"SEMESTRAL\"),N17,IF(AND(N23=\"SEMESTRAL\",J23=\"ANUAL\"),\"REVISAR FRECUENCIAS\",IF(AND(N23=\"TRIMESTRAL\",J23=\"MENSUAL\"),N17/3,IF(AND(N23=\"TRIMESTRAL\",J23=\"TRIMESTRAL\"),N17,IF(AND(N23=\"TRIMESTRAL\",J23=\"SEMESTRAL\"),\"REVISAR FRECUENCIAS\",IF(AND(N23=\"TRIMESTRAL\",J23=\"ANUAL\"),\"REVISAR FRECUENCIAS\",IF(AND(N23=\"MENSUAL\",J23=\"MENSUAL\"),N17,IF(AND(N23=\"MENSUAL\",J23=\"TRIMESTRAL\"),\"REVISAR FRECUENCIAS\",IF(AND(N23=\"MENSUAL\",J23=\"SEMESTRAL\"),\"REVISAR FRECUENCIAS\",IF(AND(N23=\"MENSUAL\",J23=\"ANUAL\"),\"REVISAR FRECUENCIAS\",\"\"))))))))))))))))","v":0.8},{"$f":"IF(AND(N23=\"ANUAL\",J23=\"MENSUAL\"),N17/12+D50,IF(AND(N23=\"ANUAL\",J23=\"TRIMESTRAL\"),N17/4+D50,IF(AND(N23=\"ANUAL\",J23=\"SEMESTRAL\"),N17/2+D50,IF(AND(N23=\"SEMESTRAL\",J23=\"MENSUAL\"),N17/6+D50,IF(AND(N23=\"SEMESTRAL\",J23=\"TRIMESTRAL\"),N17/2+D50,IF(AND(N23=\"SEMESTRAL\",J23=\"SEMESTRAL\"),N17,IF(AND(N23=\"TRIMESTRAL\",J23=\"MENSUAL\"),N17/3+D50,IF(AND(N23=\"TRIMESTRAL\",J23=\"TRIMESTRAL\"),N17,IF(AND(N23=\"MENSUAL\",J23=\"MENSUAL\"),N17,\"\")))))))))","v":0.8},{"$f":"IF(AND(N23=\"ANUAL\",J23=\"MENSUAL\"),N17/12+E50,IF(AND(N23=\"ANUAL\",J23=\"TRIMESTRAL\"),N17/4+E50,IF(AND(N23=\"SEMESTRAL\",J23=\"MENSUAL\"),N17/6+E50,IF(AND(N23=\"SEMESTRAL\",J23=\"TRIMESTRAL\"),N17/2,IF(AND(N23=\"TRIMESTRAL\",J23=\"MENSUAL\"),N17/3+E50,IF(AND(N23=\"TRIMESTRAL\",J23=\"TRIMESTRAL\"),N17,IF(AND(N23=\"MENSUAL\",J23=\"MENSUAL\"),N17,\"\")))))))","v":""},{"$f":"IF(AND(N23=\"ANUAL\",J23=\"MENSUAL\"),N17/12+F50,IF(AND(N23=\"ANUAL\",J23=\"TRIMESTRAL\"),N17/4+F50,IF(AND(N23=\"SEMESTRAL\",J23=\"MENSUAL\"),N17/6+F50,IF(AND(N23=\"SEMESTRAL\",J23=\"TRIMESTRAL\"),N17/2+F50,IF(AND(N23=\"TRIMESTRAL\",J23=\"MENSUAL\"),N17/3,IF(AND(N23=\"TRIMESTRAL\",J23=\"TRIMESTRAL\"),N17,IF(AND(N23=\"MENSUAL\",J23=\"MENSUAL\"),N17,\"\")))))))","v":""},{"$f":"IF(AND($N$23=\"ANUAL\",$J$23=\"MENSUAL\"),$N$17/12+G50,IF(AND(N23=\"SEMESTRAL\",J23=\"MENSUAL\"),N17/6+G50,IF(AND(N23=\"TRIMESTRAL\",J23=\"MENSUAL\"),N17/3+G50,IF(AND(N23=\"MENSUAL\",J23=\"MENSUAL\"),N17,\"\"))))","v":""},{"$f":"IF(AND($N$23=\"ANUAL\",$J$23=\"MENSUAL\"),$N$17/12+H50,IF(AND(N23=\"SEMESTRAL\",J23=\"MENSUAL\"),N17/6+H50,IF(AND(N23=\"TRIMESTRAL\",J23=\"MENSUAL\"),N17/3+H50,IF(AND(N23=\"MENSUAL\",J23=\"MENSUAL\"),N17,\"\"))))","v":""},{"$f":"IF(AND($N$23=\"ANUAL\",$J$23=\"MENSUAL\"),$N$17/12+I50,IF(AND(N23=\"SEMESTRAL\",J23=\"MENSUAL\"),N17/6,IF(AND(N23=\"TRIMESTRAL\",J23=\"MENSUAL\"),N17/3,IF(AND(N23=\"MENSUAL\",J23=\"MENSUAL\"),N17,\"\"))))","v":""},{"$f":"IF(AND($N$23=\"ANUAL\",$J$23=\"MENSUAL\"),$N$17/12+J50,IF(AND(N23=\"SEMESTRAL\",J23=\"MENSUAL\"),N17/6+J50,IF(AND(N23=\"TRIMESTRAL\",J23=\"MENSUAL\"),N17/3+J50,IF(AND(N23=\"MENSUAL\",J23=\"MENSUAL\"),N17,\"\"))))","v":""},{"$f":"IF(AND($N$23=\"ANUAL\",$J$23=\"MENSUAL\"),$N$17/12+K50,IF(AND(N23=\"SEMESTRAL\",J23=\"MENSUAL\"),N17/6+K50,IF(AND(N23=\"TRIMESTRAL\",J23=\"MENSUAL\"),N17/3+K50,IF(AND(N23=\"MENSUAL\",J23=\"MENSUAL\"),N17,\"\"))))","v":""},{"$f":"IF(AND($N$23=\"ANUAL\",$J$23=\"MENSUAL\"),$N$17/12+L50,IF(AND(N23=\"SEMESTRAL\",J23=\"MENSUAL\"),N17/6+L50,IF(AND(N23=\"TRIMESTRAL\",J23=\"MENSUAL\"),N17/3,IF(AND(N23=\"MENSUAL\",J23=\"MENSUAL\"),N17,\"\"))))","v":""},{"$f":"IF(AND($N$23=\"ANUAL\",$J$23=\"MENSUAL\"),$N$17/12+M50,IF(AND(N23=\"SEMESTRAL\",J23=\"MENSUAL\"),N17/6+M50,IF(AND(N23=\"TRIMESTRAL\",J23=\"MENSUAL\"),N17/3+M50,IF(AND(N23=\"MENSUAL\",J23=\"MENSUAL\"),N17,\"\"))))","v":""},{"$f":"IF(AND($N$23=\"ANUAL\",$J$23=\"MENSUAL\"),$N$17/12+N50,IF(AND(N23=\"SEMESTRAL\",J23=\"MENSUAL\"),N17/6+N50,IF(AND(N23=\"TRIMESTRAL\",J23=\"MENSUAL\"),N17/3+N50,IF(AND(N23=\"MENSUAL\",J23=\"MENSUAL\"),N17,\"\"))))","v":""}]
[]
[null,null,"NIVEL DE SEGREGACIÓN *"]
[null,null,"UNIDAD SEGREGADA (Ej. Facultad, Programa Académico, Área)",null,null,null,"RESULTADO",null,null,null,"ANALISIS DE DATOS SEGREGADO"]
[null,null,"MINUTA DE CONTRATACION DIRECTA",null,null,null,0.92849999999999999,null,null,null,"SE RECIBIERON 154 REQUERIMIENTOS EN CUANTO A LA MINUTA DE CONTRATACION DIRECTA, DE LOS CUALES 143 SE ATENDIERON DENTRO DE LOS TERMINOS DE RESPUESTA DEFINIDOS"]
[null,null,"GARANTIA DE CONTRATACION DIRECTA",null,null,null,0.94730000000000003,null,null,null,"SE RECIBIERON 57 REQUERIMIENTOS EN CUANTO A LA GARANTIA DE CONTRATACION DIRECTA,, DE LOS CUALES 54 SE ATENDIERON DENTRO DE LOS TERMINOS DE RESPUESTA DEFINIDOS"]
[]
[]
[]
[]
[]
[]
[]
[]
[]
[]
[]
[]
[null,null,null,null,null,null,"Estratégico",null,null,"Eficacia"]
[null,null,null,null,null,null,"Misional",null,null,"Eficiencia"]
[null,null,null,null,null,null,"Apoyo",null,null,"Acreditación"]
[null,null,null,null,null,null,"Seguimiento, Medición, Análisis y Evaluación",null,null,"Positiva"]
[null,null,null,null,null,null,"Direccionamiento Estratégico",null,null,"Negativa"]
[null,null,null,null,null,null,"Planeación Institucional",null,null,"Por Unidad Regional"]
[null,null,null,null,null,null,"Proyectos Especiales y Relaciones Interinstitucionales",null,null,"Por Facultad"]
[null,null,null,null,null,null,"Sistemas Integrados",null,null,"Por Programa Académico"]
[null,null,null,null,null,null,"Autoevaluación y Acreditación",null,null,"Por área"]
[null,null,null,null,null,null,"Comunicaciones",null,null,"Por Laboratorio"]
[null,null,null,null,null,null,"Formación y Aprendizaje",null,null,"Otros"]
[null,null,null,null,null,null,"Ciencia, Tecnología e Innovación",null,null,"No Aplica"]
[null,null,null,null,null,null,"Interacción Social Universitaria"]
[null,null,null,null,null,null,"Bienestar Universitario"]
[null,null,null,null,null,null,"Admisiones y Registro"]
[null,null,null,null,null,null,"Graduados"]
[null,null,null,null,null,null,"Dialogando con el Mundo"]
[null,null,null,null,null,null,"Talento Humano"]
[null,null,null,null,null,null,"Jurídica"]
[null,null,null,null,null,null,"Financiera"]
[null,null,null,null,null,null,"Sistemas y Tecnología"]
[null,null,null,null,null,null,"Bienes y Servicios"]
[null,null,null,null,null,null,"Documental"]
[null,null,null,null,null,null,"Apoyo Académico"]
[null,null,null,null,null,null,"Control Interno"]
[null,null,null,null,null,null,"Control Disciplinario"]
[null,null,null,null,null,null,"Servicio de Atención al Ciudadano"]

{"sheet":"AJU-5","index":3,"n_rows":94,"n_cols":15,"rows_kept":94,"cut":false,"hidden":false,"merged":[[1,1,3,2],[4,2,7,3],[4,4,4,11],[15,2,15,14],[8,2,8,14],[9,2,10,14],[11,2,11,3],[11,4,11,7],[11,8,11,9],[11,10,11,14],[12,2,12,3],[12,4,12,14],[13,2,13,3],[13,4,13,14],[4,12,4,14],[5,4,5,11],[5,12,5,14],[6,4,7,11],[6,12,6,14],[7,12,7,14],[16,15,17,15],[16,13,16,14],[17,13,18,14],[18,4,18,5],[16,2,16,3],[16,11,16,12],[17,11,18,12],[17,6,17,10],[18,6,18,10],[16,9,16,10],[16,7,16,8],[16,4,16,6],[22,7,23,8],[14,2,14,14],[22,4,22,6],[23,4,23,6],[19,2,21,3],[19,7,21,8],[19,11,19,14],[19,9,21,10],[19,4,21,6],[22,13,23,14],[22,2,22,3],[23,2,23,3],[22,9,23,10],[22,11,23,12],[17,2,18,3],[17,4,17,5],[44,2,44,14],[25,2,25,14],[26,2,42,8],[26,9,26,14],[42,9,42,14],[41,9,41,14],[26,15,27,15],[27,9,32,14],[33,9,33,14],[34,9,39,14],[40,9,40,14],[51,2,51,14],[52,2,52,5],[52,6,52,9],[52,10,52,14],[53,2,53,5],[53,6,53,9],[53,10,53,14],[54,2,54,5],[55,2,55,5],[55,6,55,9],[55,10,55,14],[54,10,54,14],[54,6,54,9]]}
[]
[null,"      REGRESAR"]
[]
[]
[null,null,null,null,"MACROPROCESO ESTRATÉGICO",null,null,null,null,null,null,null,"CÓDIGO: ESGr027"]
[null,null,null,null,"PROCESO GESTIÓN SISTEMAS INTEGRADOS - CALIDAD",null,null,null,null,null,null,null,"VERSIÓN: 8"]
[null,null,null,null,"MATRIZ DE MEDICIÓN Y SEGUIMIENTO A LOS PROCESOS DE GESTIÓN",null,null,null,null,null,null,null,"VIGENCIA: 2023-07-28"]
[null,null,null,null,null,null,null,null,null,null,null,null,"PÁGINA: 1 de 4"]
[]
[null,null,"FICHA DE INDICADOR"]
[]
[null,null,"MACROPROCESO",null,"Apoyo",null,null,null,"NOMBRE DEL INDICADOR",null,"Oportunidad de respuesta en revisión de términos de referencia y minuta de contratación Publico-Privada"]
[null,null,"PROCESO GESTIÓN",null,"Jurídica"]
[null,null,"RESPONSABLE DE MEDICIÓN",null,"Director(a) Jurídica"]
[]
[null,null,"1. COMPORTAMIENTO DE INDICADOR"]
[null,null,"CLASIFICACIÓN DE LA MEDICIÓN",null,1,null,null,"TIPO DE INDICADOR",null,"Eficacia",null,"META",null,0.85]
[null,null,"FORMULA",null,"NUMERADOR",null,"Número de solicitudes atendidas oportunamente * 100",null,null,null,null,"UNIDAD DE MEDIDA",null,"Porcentaje"]
[null,null,null,null,"DENOMINADOR",null,"Total de solicitudes cerradas"]
[null,null,"TENDENCIA",null,"Positiva",null,null,"NIVEL DE SEGREGACIÓN *",null,"Otros",null,"ESCALA"]
[null,null,null,null,null,null,null,null,null,null,null,"Deficiente","Aceptable","Bueno","Excelente"]
[null,null,null,null,null,null,null,null,null,null,null,"0% - 45,9%","46% - 65,9%","66% - 84,9% ",">=85%"]
[null,null,"ORIGEN DE DATOS NUMERADOR",null,"Data Integradoc",null,null,"FRECUENCIA DE LA MEDICIÓN",null,"SEMESTRAL",null,"FRECUENCIA DE RESULTADO",null,"SEMESTRAL"]
[null,null,"ORIGEN DE DATOS DENOMINADOR",null,"Data Integradoc"]
[]
[null,null,"RESULTADOS"]
[null,null,null,null,null,null,null,null,null,"ANÁLISIS DE DATOS"]
[null,null,null,null,null,null,null,null,null,"Se recibieron 12 solicitudes con respecto a la revisión de términos de referencia  de invitación Publico-Privada de los cuales todos fueron atendidos dentro del termino estipulado, dando un  resultado de un 100% de cumplimiento. Por otra parte, con respecto a la revisión y aprobación de la minuta, se revisaron 26 requerimientos de los cuales se cumplieron dentro del termino 23 solicitudes, dando el cumplimiento al 88%.\nPor lo tanto, se da una totalidad de cumplimiento de un 92% logrando la meta máxima. "]
[]
[]
[]
[]
[]
[null,null,null,null,null,null,null,null,null,"ACCIÓN FORMULADA"]
[null,null,null,null,null,null,null,null,null,"Concorde con el análisis de datos, se evidencia el cumplimiento de la meta propuesta, sin embargo es indispensable recordará a los abogados (as) de la Dirección Jurídica el cumplimiento de los términos de respuesta establecidos en la circular 006 del 2022-06-03 emitida por la Vicerrectoría Administrativa y Financiera, con la finalidad del que desarrollo de la contratación sea eficiente y oportuno, así como socializar con las dependencias la importancia de atender los ajustes en el menor tiempo posible."]
[]
[]
[]
[]
[]
[null,null,null,null,null,null,null,null,null,"RESPONSABLE "]
[null,null,null,null,null,null,null,null,null,{"$f":"E14","v":"Director(a) Jurídica"}]
[]
[]
[null,null,"PERIODO DE EVALUACIÓN"]
[null,null,"MES",{"$f":"IF(J23=\"MENSUAL\",\"ENERO\",IF(J23=\"TRIMESTRAL\",\"MARZO\",IF(J23=\"SEMESTRAL\",\"JUNIO\",IF(J23=\"ANUAL\",YEAR(TODAY()),\"\"))))","v":"JUNIO"},{"$f":"IF(J23=\"MENSUAL\",\"FEBRERO\",IF(J23=\"TRIMESTRAL\",\"JUNIO\",IF(J23=\"SEMESTRAL\",\"DICIEMBRE\",\"\")))","v":"DICIEMBRE"},{"$f":"IF(J23=\"MENSUAL\",\"MARZO\",IF(J23=\"TRIMESTRAL\",\"SEPTIEMBRE\",\"\"))","v":""},{"$f":"IF(J23=\"MENSUAL\",\"ABRIL\",IF(J23=\"TRIMESTRAL\",\"DICIEMBRE\",\"\"))","v":""},{"$f":"IF(J23=\"MENSUAL\",\"MAYO\",\"\")","v":""},{"$f":"IF(J23=\"MENSUAL\",\"JUNIO\",\"\")","v":""},{"$f":"IF(J23=\"MENSUAL\",\"JULIO\",\"\")","v":""},{"$f":"IF(J23=\"MENSUAL\",\"AGOSTO\",\"\")","v":""},{"$f":"IF(J23=\"MENSUAL\",\"SEPTIEMBRE\",\"\")","v":""},{"$f":"IF(J23=\"MENSUAL\",\"OCTUBRE\",\"\")","v":""},{"$f":"IF(J23=\"MENSUAL\",\"NOVIEMBRE\",\"\")","v":""},{"$f":"IF(J23=\"MENSUAL\",\"DICIEMBRE\",\"\")","v":""}]
[null,null,{"$f":"G18","v":"Número de solicitudes atendidas oportunamente * 100"},21,35]
[null,null,{"$f":"G19","v":"Total de solicitudes cerradas"},21,38]
[null,null,"VALOR ",{"$f":"IFERROR(IF($E$17=1,D47/D48,IF($E$17=2,D47,\"\")),\"\")","v":1},{"$f":"IFERROR(IF($E$17=1,E47/E48,IF($E$17=2,E47,\"\")),\"\")","v":0.92105263157894735},{"$f":"IFERROR(IF($E$17=1,F47/F48,IF($E$17=2,F47,\"\")),\"\")","v":""},"","","","","","","","",""]
[null,null,"META PONDERADA",{"$f":"IF(AND(N23=\"ANUAL\",J23=\"MENSUAL\"),N17/12,IF(AND(N23=\"ANUAL\",J23=\"TRIMESTRAL\"),N17/4,IF(AND(N23=\"ANUAL\",J23=\"SEMESTRAL\"),N17/2,IF(AND(N23=\"ANUAL\",J23=\"ANUAL\"),N17,IF(AND(N23=\"SEMESTRAL\",J23=\"MENSUAL\"),N17/6,IF(AND(N23=\"SEMESTRAL\",J23=\"TRIMESTRAL\"),N17/2,IF(AND(N23=\"SEMESTRAL\",J23=\"SEMESTRAL\"),N17,IF(AND(N23=\"SEMESTRAL\",J23=\"ANUAL\"),\"REVISAR FRECUENCIAS\",IF(AND(N23=\"TRIMESTRAL\",J23=\"MENSUAL\"),N17/3,IF(AND(N23=\"TRIMESTRAL\",J23=\"TRIMESTRAL\"),N17,IF(AND(N23=\"TRIMESTRAL\",J23=\"SEMESTRAL\"),\"REVISAR FRECUENCIAS\",IF(AND(N23=\"TRIMESTRAL\",J23=\"ANUAL\"),\"REVISAR FRECUENCIAS\",IF(AND(N23=\"MENSUAL\",J23=\"MENSUAL\"),N17,IF(AND(N23=\"MENSUAL\",J23=\"TRIMESTRAL\"),\"REVISAR FRECUENCIAS\",IF(AND(N23=\"MENSUAL\",J23=\"SEMESTRAL\"),\"REVISAR FRECUENCIAS\",IF(AND(N23=\"MENSUAL\",J23=\"ANUAL\"),\"REVISAR FRECUENCIAS\",\"\"))))))))))))))))","v":0.85},{"$f":"IF(AND(N23=\"ANUAL\",J23=\"MENSUAL\"),N17/12+D50,IF(AND(N23=\"ANUAL\",J23=\"TRIMESTRAL\"),N17/4+D50,IF(AND(N23=\"ANUAL\",J23=\"SEMESTRAL\"),N17/2+D50,IF(AND(N23=\"SEMESTRAL\",J23=\"MENSUAL\"),N17/6+D50,IF(AND(N23=\"SEMESTRAL\",J23=\"TRIMESTRAL\"),N17/2+D50,IF(AND(N23=\"SEMESTRAL\",J23=\"SEMESTRAL\"),N17,IF(AND(N23=\"TRIMESTRAL\",J23=\"MENSUAL\"),N17/3+D50,IF(AND(N23=\"TRIMESTRAL\",J23=\"TRIMESTRAL\"),N17,IF(AND(N23=\"MENSUAL\",J23=\"MENSUAL\"),N17,\"\")))))))))","v":0.85},{"$f":"IF(AND(N23=\"ANUAL\",J23=\"MENSUAL\"),N17/12+E50,IF(AND(N23=\"ANUAL\",J23=\"TRIMESTRAL\"),N17/4+E50,IF(AND(N23=\"SEMESTRAL\",J23=\"MENSUAL\"),N17/6+E50,IF(AND(N23=\"SEMESTRAL\",J23=\"TRIMESTRAL\"),N17/2,IF(AND(N23=\"TRIMESTRAL\",J23=\"MENSUAL\"),N17/3+E50,IF(AND(N23=\"TRIMESTRAL\",J23=\"TRIMESTRAL\"),N17,IF(AND(N23=\"MENSUAL\",J23=\"MENSUAL\"),N17,\"\")))))))","v":""},{"$f":"IF(AND(N23=\"ANUAL\",J23=\"MENSUAL\"),N17/12+F50,IF(AND(N23=\"ANUAL\",J23=\"TRIMESTRAL\"),N17/4+F50,IF(AND(N23=\"SEMESTRAL\",J23=\"MENSUAL\"),N17/6+F50,IF(AND(N23=\"SEMESTRAL\",J23=\"TRIMESTRAL\"),N17/2+F50,IF(AND(N23=\"TRIMESTRAL\",J23=\"MENSUAL\"),N17/3,IF(AND(N23=\"TRIMESTRAL\",J23=\"TRIMESTRAL\"),N17,IF(AND(N23=\"MENSUAL\",J23=\"MENSUAL\"),N17,\"\")))))))","v":""},{"$f":"IF(AND($N$23=\"ANUAL\",$J$23=\"MENSUAL\"),$N$17/12+G50,IF(AND(N23=\"SEMESTRAL\",J23=\"MENSUAL\"),N17/6+G50,IF(AND(N23=\"TRIMESTRAL\",J23=\"MENSUAL\"),N17/3+G50,IF(AND(N23=\"MENSUAL\",J23=\"MENSUAL\"),N17,\"\"))))","v":""},{"$f":"IF(AND($N$23=\"ANUAL\",$J$23=\"MENSUAL\"),$N$17/12+H50,IF(AND(N23=\"SEMESTRAL\",J23=\"MENSUAL\"),N17/6+H50,IF(AND(N23=\"TRIMESTRAL\",J23=\"MENSUAL\"),N17/3+H50,IF(AND(N23=\"MENSUAL\",J23=\"MENSUAL\"),N17,\"\"))))","v":""},{"$f":"IF(AND($N$23=\"ANUAL\",$J$23=\"MENSUAL\"),$N$17/12+I50,IF(AND(N23=\"SEMESTRAL\",J23=\"MENSUAL\"),N17/6,IF(AND(N23=\"TRIMESTRAL\",J23=\"MENSUAL\"),N17/3,IF(AND(N23=\"MENSUAL\",J23=\"MENSUAL\"),N17,\"\"))))","v":""},{"$f":"IF(AND($N$23=\"ANUAL\",$J$23=\"MENSUAL\"),$N$17/12+J50,IF(AND(N23=\"SEMESTRAL\",J23=\"MENSUAL\"),N17/6+J50,IF(AND(N23=\"TRIMESTRAL\",J23=\"MENSUAL\"),N17/3+J50,IF(AND(N23=\"MENSUAL\",J23=\"MENSUAL\"),N17,\"\"))))","v":""},{"$f":"IF(AND($N$23=\"ANUAL\",$J$23=\"MENSUAL\"),$N$17/12+K50,IF(AND(N23=\"SEMESTRAL\",J23=\"MENSUAL\"),N17/6+K50,IF(AND(N23=\"TRIMESTRAL\",J23=\"MENSUAL\"),N17/3+K50,IF(AND(N23=\"MENSUAL\",J23=\"MENSUAL\"),N17,\"\"))))","v":""},{"$f":"IF(AND($N$23=\"ANUAL\",$J$23=\"MENSUAL\"),$N$17/12+L50,IF(AND(N23=\"SEMESTRAL\",J23=\"MENSUAL\"),N17/6+L50,IF(AND(N23=\"TRIMESTRAL\",J23=\"MENSUAL\"),N17/3,IF(AND(N23=\"MENSUAL\",J23=\"MENSUAL\"),N17,\"\"))))","v":""},{"$f":"IF(AND($N$23=\"ANUAL\",$J$23=\"MENSUAL\"),$N$17/12+M50,IF(AND(N23=\"SEMESTRAL\",J23=\"MENSUAL\"),N17/6+M50,IF(AND(N23=\"TRIMESTRAL\",J23=\"MENSUAL\"),N17/3+M50,IF(AND(N23=\"MENSUAL\",J23=\"MENSUAL\"),N17,\"\"))))","v":""},{"$f":"IF(AND($N$23=\"ANUAL\",$J$23=\"MENSUAL\"),$N$17/12+N50,IF(AND(N23=\"SEMESTRAL\",J23=\"MENSUAL\"),N17/6+N50,IF(AND(N23=\"TRIMESTRAL\",J23=\"MENSUAL\"),N17/3+N50,IF(AND(N23=\"MENSUAL\",J23=\"MENSUAL\"),N17,\"\"))))","v":""}]
[]
[null,null,"NIVEL DE SEGREGACIÓN *"]
[null,null,"UNIDAD SEGREGADA (Ej. Facultad, Programa Académico, Área)",null,null,null,"RESULTADO",null,null,null,"ANALISIS DE DATOS SEGREGADO"]
[null,null,"REVISAR TÉRMINOS DE REFERENCIA INVITACIÓN PÚBLICA / PRIVADA",null,null,null,1,null,null,null,"SE RECIBIERON 12 REQUERIMIENTOS EN CUANTO A REVISAR TÉRMINOS DE REFERENCIA INVITACIÓN PÚBLICA / PRIVADA, LOS CUALES SE ATENDIERON DENTRO DE LOS TERMINOS DE RESPUESTA DEFINIDOS"]
[null,null,"REVISION DE LA MINUTA (INVITACION PUBLICA / PRIVADA)",null,null,null,0.88460000000000005,null,null,null,"SE RECIBIERON 26 REQUERIMIENTOS EN CUANTO REVISION DE LA MINUTA (INVITACION PUBLICA / PRIVADA) DE LOS CUALES, 23 SE ATENDIERON DENTRO DE LOS TERMINOS DE RESPUESTA DEFINIDOS"]
[]
[]
[]
[]
[]
[]
[]
[]
[]
[]
[]
[]
[null,null,null,null,null,null,"Estratégico",null,null,"Eficacia"]
[null,null,null,null,null,null,"Misional",null,null,"Eficiencia"]
[null,null,null,null,null,null,"Apoyo",null,null,"Acreditación"]
[null,null,null,null,null,null,"Seguimiento, Medición, Análisis y Evaluación",null,null,"Positiva"]
[null,null,null,null,null,null,"Direccionamiento Estratégico",null,null,"Negativa"]
[null,null,null,null,null,null,"Planeación Institucional",null,null,"Por Unidad Regional"]
[null,null,null,null,null,null,"Proyectos Especiales y Relaciones Interinstitucionales",null,null,"Por Facultad"]
[null,null,null,null,null,null,"Sistemas Integrados",null,null,"Por Programa Académico"]
[null,null,null,null,null,null,"Autoevaluación y Acreditación",null,null,"Por área"]
[null,null,null,null,null,null,"Comunicaciones",null,null,"Por Laboratorio"]
[null,null,null,null,null,null,"Formación y Aprendizaje",null,null,"Otros"]
[null,null,null,null,null,null,"Ciencia, Tecnología e Innovación",null,null,"No Aplica"]
[null,null,null,null,null,null,"Interacción Social Universitaria"]
[null,null,null,null,null,null,"Bienestar Universitario"]
[null,null,null,null,null,null,"Admisiones y Registro"]
[null,null,null,null,null,null,"Graduados"]
[null,null,null,null,null,null,"Dialogando con el Mundo"]
[null,null,null,null,null,null,"Talento Humano"]
[null,null,null,null,null,null,"Jurídica"]
[null,null,null,null,null,null,"Financiera"]
[null,null,null,null,null,null,"Sistemas y Tecnología"]
[null,null,null,null,null,null,"Bienes y Servicios"]
[null,null,null,null,null,null,"Documental"]
[null,null,null,null,null,null,"Apoyo Académico"]
[null,null,null,null,null,null,"Control Interno"]
[null,null,null,null,null,null,"Control Disciplinario"]
[null,null,null,null,null,null,"Servicio de Atención al Ciudadano"]

{"sheet":"AJU-7","index":4,"n_rows":102,"n_cols":15,"rows_kept":102,"cut":false,"hidden":false,"merged":[[58,2,58,5],[59,2,59,5],[60,2,60,5],[61,2,61,5],[62,6,62,9],[61,6,61,9],[58,6,58,9],[59,6,59,9],[60,6,60,9],[62,10,62,14],[63,2,63,5],[63,6,63,9],[63,10,63,14],[62,2,62,5],[61,10,61,14],[56,6,56,9],[56,10,56,14],[57,6,57,9],[57,10,57,14],[58,10,58,14],[59,10,59,14],[60,10,60,14],[56,2,56,5],[57,2,57,5],[54,6,54,9],[54,10,54,14],[55,6,55,9],[55,10,55,14],[54,2,54,5],[55,2,55,5],[53,6,53,9],[53,10,53,14],[26,15,27,15],[27,9,32,14],[33,9,33,14],[34,9,39,14],[40,9,40,14],[41,9,41,14],[44,2,44,14],[51,2,51,14],[52,2,52,5],[52,6,52,9],[52,10,52,14],[53,2,53,5],[22,13,23,14],[23,2,23,3],[23,4,23,6],[25,2,25,14],[26,2,42,8],[26,9,26,14],[42,9,42,14],[22,2,22,3],[22,4,22,6],[22,7,23,8],[22,9,23,10],[22,11,23,12],[19,2,21,3],[19,4,21,6],[19,7,21,8],[19,9,21,10],[19,11,19,14],[16,15,17,15],[17,2,18,3],[17,4,17,5],[17,6,17,10],[17,11,18,12],[17,13,18,14],[18,4,18,5],[18,6,18,10],[16,2,16,3],[16,4,16,6],[16,7,16,8],[16,9,16,10],[16,11,16,12],[16,13,16,14],[15,2,15,14],[8,2,8,14],[9,2,10,14],[11,2,11,3],[11,4,11,7],[11,8,11,9],[11,10,11,14],[12,2,12,3],[12,4,12,14],[13,2,13,3],[13,4,13,14],[14,2,14,14],[1,1,3,2],[4,2,7,3],[4,4,4,11],[4,12,4,14],[5,4,5,11],[5,12,5,14],[6,4,7,11],[6,12,6,14],[7,12,7,14]]}
[]
[null,"      REGRESAR"]
[]
[]
[null,null,null,null,"MACROPROCESO ESTRATÉGICO",null,null,null,null,null,null,null,"CÓDIGO: ESGr027"]
[null,null,null,null,"PROCESO GESTIÓN SISTEMAS INTEGRADOS - CALIDAD",null,null,null,null,null,null,null,"VERSIÓN: 8"]
[null,null,null,null,"MATRIZ DE MEDICIÓN Y SEGUIMIENTO A LOS PROCESOS DE GESTIÓN",null,null,null,null,null,null,null,"VIGENCIA: 2023-07-28"]
[null,null,null,null,null,null,null,null,null,null,null,null,"PÁGINA: 1 de 4"]
[]
[null,null,"FICHA DE INDICADOR"]
[]
[null,null,"MACROPROCESO",null,"Apoyo",null,null,null,"NOMBRE DEL INDICADOR",null,"Oportunidad en los términos de respuesta frente a los requerimientos jurídicos (Integradoc)"]
[null,null,"PROCESO GESTIÓN",null,"Jurídica"]
[null,null,"RESPONSABLE DE MEDICIÓN",null,"Director(a) Jurídica"]
[]
[null,null,"1. COMPORTAMIENTO DE INDICADOR"]
[null,null,"CLASIFICACIÓN DE LA MEDICIÓN",null,1,null,null,"TIPO DE INDICADOR",null,"Eficacia",null,"META",null,0.8]
[null,null,"FORMULA",null,"NUMERADOR",null,"N° solicitudes atendidas en los términos establecidos (requerimientos jurídicos por Integradoc) *100 ",null,null,null,null,"UNIDAD DE MEDIDA",null,"Porcentaje"]
[null,null,null,null,"DENOMINADOR",null,"Total de solicitudes contestadas, allegadas como requerimientos jurídicos por Integradoc"]
[null,null,"TENDENCIA",null,"Positiva",null,null,"NIVEL DE SEGREGACIÓN *",null,"Otros",null,"ESCALA"]
[null,null,null,null,null,null,null,null,null,null,null,"Deficiente","Aceptable","Bueno","Excelente"]
[null,null,null,null,null,null,null,null,null,null,null,"0% - 40,9%","41% - 60,9%","61% - 79,9% ",">=80%"]
[null,null,"ORIGEN DE DATOS NUMERADOR",null,"Data Integradoc",null,null,"FRECUENCIA DE LA MEDICIÓN",null,"TRIMESTRAL",null,"FRECUENCIA DE RESULTADO",null,"TRIMESTRAL"]
[null,null,"ORIGEN DE DATOS DENOMINADOR",null,"Data Integradoc"]
[]
[null,null,"RESULTADOS"]
[null,null,null,null,null,null,null,null,null,"ANÁLISIS DE DATOS"]
[null,null,null,null,null,null,null,null,null,"Se recibieron 59 requerimientos jurídicos de los cuales 46 se cumplieron dentro del termino estipulado para cada uno de las solicitudes, y 13 no cumplen dentro del termino, dando de esta manera un resultado de cumplimiento de 78%, superando la meta ponderada. Se debe tener en cuenta que se medio bajo la normatividad de los días señalados para cada revisión teniendo en cuenta fecha calendario, además del histórico enviado por Integradoc. \n"]
[]
[]
[]
[]
[]
[null,null,null,null,null,null,null,null,null,"ACCIÓN FORMULADA"]
[null,null,null,null,null,null,null,null,null,"Concorde con el análisis de datos, se evidencia que no se cumplió la meta propuesta, por lo tanto, se hace necesario recodar a las áreas solicitantes  y a los abogados (as) de la Dirección Jurídica, cumplimiento de la Circular 08 de 2021 con la finalidad de garantizar el desarrollo de idóneo de las solicitudes en los términos establecidos, así como remitir la documentación completa en los términos correspondientes, en aras de fortalecer que las correcciones sean realizadas acorde a los términos."]
[]
[]
[]
[]
[]
[null,null,null,null,null,null,null,null,null,"RESPONSABLE "]
[null,null,null,null,null,null,null,null,null,{"$f":"E14","v":"Director(a) Jurídica"}]
[]
[]
[null,null,"PERIODO DE EVALUACIÓN"]
[null,null,"MES",{"$f":"IF(J23=\"MENSUAL\",\"ENERO\",IF(J23=\"TRIMESTRAL\",\"MARZO\",IF(J23=\"SEMESTRAL\",\"JUNIO\",IF(J23=\"ANUAL\",YEAR(TODAY()),\"\"))))","v":"MARZO"},{"$f":"IF(J23=\"MENSUAL\",\"FEBRERO\",IF(J23=\"TRIMESTRAL\",\"JUNIO\",IF(J23=\"SEMESTRAL\",\"DICIEMBRE\",\"\")))","v":"JUNIO"},{"$f":"IF(J23=\"MENSUAL\",\"MARZO\",IF(J23=\"TRIMESTRAL\",\"SEPTIEMBRE\",\"\"))","v":"SEPTIEMBRE"},{"$f":"IF(J23=\"MENSUAL\",\"ABRIL\",IF(J23=\"TRIMESTRAL\",\"DICIEMBRE\",\"\"))","v":"DICIEMBRE"},{"$f":"IF(J23=\"MENSUAL\",\"MAYO\",\"\")","v":""},{"$f":"IF(J23=\"MENSUAL\",\"JUNIO\",\"\")","v":""},{"$f":"IF(J23=\"MENSUAL\",\"JULIO\",\"\")","v":""},{"$f":"IF(J23=\"MENSUAL\",\"AGOSTO\",\"\")","v":""},{"$f":"IF(J23=\"MENSUAL\",\"SEPTIEMBRE\",\"\")","v":""},{"$f":"IF(J23=\"MENSUAL\",\"OCTUBRE\",\"\")","v":""},{"$f":"IF(J23=\"MENSUAL\",\"NOVIEMBRE\",\"\")","v":""},{"$f":"IF(J23=\"MENSUAL\",\"DICIEMBRE\",\"\")","v":""}]
[null,null,{"$f":"G18","v":"N° solicitudes atendidas en los términos establecidos (requerimientos jurídicos por Integradoc) *100 "},26,68,39,46]
[null,null,{"$f":"G19","v":"Total de solicitudes contestadas, allegadas como requerimientos jurídicos por Integradoc"},33,82,46,59]
[null,null,"VALOR ",{"$f":"IFERROR(IF($E$17=1,D47/D48,IF($E$17=2,D47,\"\")),\"\")","v":0.78787878787878785},{"$f":"IFERROR(IF($E$17=1,E47/E48,IF($E$17=2,E47,\"\")),\"\")","v":0.82926829268292679},{"$f":"IFERROR(IF($E$17=1,F47/F48,IF($E$17=2,F47,\"\")),\"\")","v":0.84782608695652173},{"$f":"IFERROR(IF($E$17=1,G47/G48,IF($E$17=2,F47,\"\")),\"\")","v":0.77966101694915257},{"$f":"IFERROR(IF($E$17=1,H47/H48,IF($E$17=2,H47,\"\")),\"\")","v":""},"","","","","","",""]
[null,null,"META PONDERADA",{"$f":"IF(AND(N23=\"ANUAL\",J23=\"MENSUAL\"),N17/12,IF(AND(N23=\"ANUAL\",J23=\"TRIMESTRAL\"),N17/4,IF(AND(N23=\"ANUAL\",J23=\"SEMESTRAL\"),N17/2,IF(AND(N23=\"ANUAL\",J23=\"ANUAL\"),N17,IF(AND(N23=\"SEMESTRAL\",J23=\"MENSUAL\"),N17/6,IF(AND(N23=\"SEMESTRAL\",J23=\"TRIMESTRAL\"),N17/2,IF(AND(N23=\"SEMESTRAL\",J23=\"SEMESTRAL\"),N17,IF(AND(N23=\"SEMESTRAL\",J23=\"ANUAL\"),\"REVISAR FRECUENCIAS\",IF(AND(N23=\"TRIMESTRAL\",J23=\"MENSUAL\"),N17/3,IF(AND(N23=\"TRIMESTRAL\",J23=\"TRIMESTRAL\"),N17,IF(AND(N23=\"TRIMESTRAL\",J23=\"SEMESTRAL\"),\"REVISAR FRECUENCIAS\",IF(AND(N23=\"TRIMESTRAL\",J23=\"ANUAL\"),\"REVISAR FRECUENCIAS\",IF(AND(N23=\"MENSUAL\",J23=\"MENSUAL\"),N17,IF(AND(N23=\"MENSUAL\",J23=\"TRIMESTRAL\"),\"REVISAR FRECUENCIAS\",IF(AND(N23=\"MENSUAL\",J23=\"SEMESTRAL\"),\"REVISAR FRECUENCIAS\",IF(AND(N23=\"MENSUAL\",J23=\"ANUAL\"),\"REVISAR FRECUENCIAS\",\"\"))))))))))))))))","v":0.8},{"$f":"IF(AND(N23=\"ANUAL\",J23=\"MENSUAL\"),N17/12+D50,IF(AND(N23=\"ANUAL\",J23=\"TRIMESTRAL\"),N17/4+D50,IF(AND(N23=\"ANUAL\",J23=\"SEMESTRAL\"),N17/2+D50,IF(AND(N23=\"SEMESTRAL\",J23=\"MENSUAL\"),N17/6+D50,IF(AND(N23=\"SEMESTRAL\",J23=\"TRIMESTRAL\"),N17/2+D50,IF(AND(N23=\"SEMESTRAL\",J23=\"SEMESTRAL\"),N17,IF(AND(N23=\"TRIMESTRAL\",J23=\"MENSUAL\"),N17/3+D50,IF(AND(N23=\"TRIMESTRAL\",J23=\"TRIMESTRAL\"),N17,IF(AND(N23=\"MENSUAL\",J23=\"MENSUAL\"),N17,\"\")))))))))","v":0.8},{"$f":"IF(AND(N23=\"ANUAL\",J23=\"MENSUAL\"),N17/12+E50,IF(AND(N23=\"ANUAL\",J23=\"TRIMESTRAL\"),N17/4+E50,IF(AND(N23=\"SEMESTRAL\",J23=\"MENSUAL\"),N17/6+E50,IF(AND(N23=\"SEMESTRAL\",J23=\"TRIMESTRAL\"),N17/2,IF(AND(N23=\"TRIMESTRAL\",J23=\"MENSUAL\"),N17/3+E50,IF(AND(N23=\"TRIMESTRAL\",J23=\"TRIMESTRAL\"),N17,IF(AND(N23=\"MENSUAL\",J23=\"MENSUAL\"),N17,\"\")))))))","v":0.8},{"$f":"IF(AND(N23=\"ANUAL\",J23=\"MENSUAL\"),N17/12+F50,IF(AND(N23=\"ANUAL\",J23=\"TRIMESTRAL\"),N17/4+F50,IF(AND(N23=\"SEMESTRAL\",J23=\"MENSUAL\"),N17/6+F50,IF(AND(N23=\"SEMESTRAL\",J23=\"TRIMESTRAL\"),N17/2+F50,IF(AND(N23=\"TRIMESTRAL\",J23=\"MENSUAL\"),N17/3,IF(AND(N23=\"TRIMESTRAL\",J23=\"TRIMESTRAL\"),N17,IF(AND(N23=\"MENSUAL\",J23=\"MENSUAL\"),N17,\"\")))))))","v":0.8},{"$f":"IF(AND($N$23=\"ANUAL\",$J$23=\"MENSUAL\"),$N$17/12+G50,IF(AND(N23=\"SEMESTRAL\",J23=\"MENSUAL\"),N17/6+G50,IF(AND(N23=\"TRIMESTRAL\",J23=\"MENSUAL\"),N17/3+G50,IF(AND(N23=\"MENSUAL\",J23=\"MENSUAL\"),N17,\"\"))))","v":""},{"$f":"IF(AND($N$23=\"ANUAL\",$J$23=\"MENSUAL\"),$N$17/12+H50,IF(AND(N23=\"SEMESTRAL\",J23=\"MENSUAL\"),N17/6+H50,IF(AND(N23=\"TRIMESTRAL\",J23=\"MENSUAL\"),N17/3+H50,IF(AND(N23=\"MENSUAL\",J23=\"MENSUAL\"),N17,\"\"))))","v":""},{"$f":"IF(AND($N$23=\"ANUAL\",$J$23=\"MENSUAL\"),$N$17/12+I50,IF(AND(N23=\"SEMESTRAL\",J23=\"MENSUAL\"),N17/6,IF(AND(N23=\"TRIMESTRAL\",J23=\"MENSUAL\"),N17/3,IF(AND(N23=\"MENSUAL\",J23=\"MENSUAL\"),N17,\"\"))))","v":""},{"$f":"IF(AND($N$23=\"ANUAL\",$J$23=\"MENSUAL\"),$N$17/12+J50,IF(AND(N23=\"SEMESTRAL\",J23=\"MENSUAL\"),N17/6+J50,IF(AND(N23=\"TRIMESTRAL\",J23=\"MENSUAL\"),N17/3+J50,IF(AND(N23=\"MENSUAL\",J23=\"MENSUAL\"),N17,\"\"))))","v":""},{"$f":"IF(AND($N$23=\"ANUAL\",$J$23=\"MENSUAL\"),$N$17/12+K50,IF(AND(N23=\"SEMESTRAL\",J23=\"MENSUAL\"),N17/6+K50,IF(AND(N23=\"TRIMESTRAL\",J23=\"MENSUAL\"),N17/3+K50,IF(AND(N23=\"MENSUAL\",J23=\"MENSUAL\"),N17,\"\"))))","v":""},{"$f":"IF(AND($N$23=\"ANUAL\",$J$23=\"MENSUAL\"),$N$17/12+L50,IF(AND(N23=\"SEMESTRAL\",J23=\"MENSUAL\"),N17/6+L50,IF(AND(N23=\"TRIMESTRAL\",J23=\"MENSUAL\"),N17/3,IF(AND(N23=\"MENSUAL\",J23=\"MENSUAL\"),N17,\"\"))))","v":""},{"$f":"IF(AND($N$23=\"ANUAL\",$J$23=\"MENSUAL\"),$N$17/12+M50,IF(AND(N23=\"SEMESTRAL\",J23=\"MENSUAL\"),N17/6+M50,IF(AND(N23=\"TRIMESTRAL\",J23=\"MENSUAL\"),N17/3+M50,IF(AND(N23=\"MENSUAL\",J23=\"MENSUAL\"),N17,\"\"))))","v":""},{"$f":"IF(AND($N$23=\"ANUAL\",$J$23=\"MENSUAL\"),$N$17/12+N50,IF(AND(N23=\"SEMESTRAL\",J23=\"MENSUAL\"),N17/6+N50,IF(AND(N23=\"TRIMESTRAL\",J23=\"MENSUAL\"),N17/3+N50,IF(AND(N23=\"MENSUAL\",J23=\"MENSUAL\"),N17,\"\"))))","v":""}]
[]
[null,null,"NIVEL DE SEGREGACIÓN *"]
[null,null,"UNIDAD SEGREGADA (Ej. Facultad, Programa Académico, Área)",null,null,null,"RESULTADO",null,null,null,"ANALISIS DE DATOS SEGREGADO"]
[null,null,"CONCEPTOS",null,null,null,1,null,null,null,"SE RECIBIERON 2 REQUERIMIENTOS EN CUANTO A CONCEPTO, Y SE ATENDIÓ DENTRO DE LOS TERMINOS DE RESPUESTA DEFINIDOS"]
[null,null,"ACTAS DE REINICIO, INICIO Y SUSPENSION",null,null,null,1,null,null,null,"SE RECIBIERON 1 REQUERIMIENTOS EN CUANTO A LAS ACTAS DE REINICIO, INICIO Y SUSPENSION, DE LOS CUALES, 1 SE ATENDIERON DENTRO DE LOS TERMINOS DE RESPUESTA DEFINIDOS"]
[null,null,"ACTAS LIQUIDACION CONTRATACION PERSONAL ACADEMICA",null,null,null,1,null,null,null,"SE RECIBIERON 4 REQUERIMIENTOS EN CUANTO A LAS ACTAS LIQUIDACION CONTRATACION PERSONAL ACADEMICA, DE LOS CUALES, 4 SE ATENDIERON DENTRO DE LOS TERMINOS DE RESPUESTA DEFINIDOS, SIN EMBARGO LOS 4 ASUNTOS FUERON RESUELTOS."]
[null,null,"ACUERDOS DE VOLUNTADES (INTERACCIÓN UNIVERSITARIA)",null,null,null,0.74,null,null,null,"SE RECIBIERON 35 REQUERIMIENTOS EN CUANTO A LOS ACUERDOS DE VOLUNTADES (INTERACCIÓN UNIVERSITARIA), DE LOS CUALES, 27 SE ATENDIERON DENTRO DE LOS TERMINOS DE RESPUESTA DEFINIDOS, SIN EMBARGO LOS 35 ASUNTOS FUERON RESUELTOS."]
[null,null,"CONVENIOS",null,null,null,1,null,null,null,"NO SE RECIBIERON REQUERIMIENTOS EN CUANTO A CONVENIOS"]
[null,null,"ESTUDIO DE CONVENIENCIA",null,null,null,1,null,null,null,"SE RECIBIERON 3 REQUERIMIENTOS EN CUANTO A ESTUDIO DE CONVENIENCIA, DE LOS CUALES, 3 SE ATENDIERON DENTRO DE LOS TERMINOS DE RESPUSTA DEFINIDOS"]
[null,null,"POLIZAS CONTRATACION PERSONAL ACADEMICA",null,null,null,1,null,null,null,"NO SE RECIBIERON REQUERIMIENTOS EN CUANTO A POLIZAS CONTRATACION PERSONAL ACADEMICA"]
[null,null,"RESOLUCIONES",null,null,null,1,null,null,null,"SE RECIBIERON 4 REQUERIMIENTOS EN CUANTO A RESOLUCIONES, DE LOS CUALES, 4 SE ATENDIERON DENTRO DE LOS TERMINOS DE RESPUESTA DEFINIDOS"]
[null,null,"REVISION OTRO SI (CONTRATACIÓN)",null,null,null,0.44440000000000002,null,null,null,"SE RECIBIERON 9 REQUERIMIENTOS EN CUANTO A OTRO SI, DE LOS CUALES, 4 SE ATENDIERON DENTRO DE LOS TERMINOS DE RESPUESTA DEFINIDOS"]
[null,null,"SOLICITUD MINISTERIO DE EDUCACION",null,null,null,1,null,null,null,"SE RECIBIERON 1 REQUERIMIENTOS EN CUANTO A UNA SOLICITUD MINISTERIO DE EDUCACION, DE LOS CUALES FUE ATENDIEDA."]
[]
[]
[]
[]
[]
[]
[]
[]
[]
[]
[]
[]
[null,null,null,null,null,null,"Estratégico",null,null,"Eficacia"]
[null,null,null,null,null,null,"Misional",null,null,"Eficiencia"]
[null,null,null,null,null,null,"Apoyo",null,null,"Acreditación"]
[null,null,null,null,null,null,"Seguimiento, Medición, Análisis y Evaluación",null,null,"Positiva"]
[null,null,null,null,null,null,"Direccionamiento Estratégico",null,null,"Negativa"]
[null,null,null,null,null,null,"Planeación Institucional",null,null,"Por Unidad Regional"]
[null,null,null,null,null,null,"Proyectos Especiales y Relaciones Interinstitucionales",null,null,"Por Facultad"]
[null,null,null,null,null,null,"Sistemas Integrados",null,null,"Por Programa Académico"]
[null,null,null,null,null,null,"Autoevaluación y Acreditación",null,null,"Por área"]
[null,null,null,null,null,null,"Comunicaciones",null,null,"Por Laboratorio"]
[null,null,null,null,null,null,"Formación y Aprendizaje",null,null,"Otros"]
[null,null,null,null,null,null,"Ciencia, Tecnología e Innovación",null,null,"No Aplica"]
[null,null,null,null,null,null,"Interacción Social Universitaria"]
[null,null,null,null,null,null,"Bienestar Universitario"]
[null,null,null,null,null,null,"Admisiones y Registro"]
[null,null,null,null,null,null,"Graduados"]
[null,null,null,null,null,null,"Dialogando con el Mundo"]
[null,null,null,null,null,null,"Talento Humano"]
[null,null,null,null,null,null,"Jurídica"]
[null,null,null,null,null,null,"Financiera"]
[null,null,null,null,null,null,"Sistemas y Tecnología"]
[null,null,null,null,null,null,"Bienes y Servicios"]
[null,null,null,null,null,null,"Documental"]
[null,null,null,null,null,null,"Apoyo Académico"]
[null,null,null,null,null,null,"Control Interno"]
[null,null,null,null,null,null,"Control Disciplinario"]
[null,null,null,null,null,null,"Servicio de Atención al Ciudadano"]

{"sheet":"AJU-8","index":5,"n_rows":93,"n_cols":15,"rows_kept":93,"cut":false,"hidden":false,"merged":[[54,2,54,5],[54,6,54,9],[54,10,54,14],[44,2,44,14],[51,2,51,14],[52,2,52,5],[52,6,52,9],[52,10,52,14],[53,2,53,5],[53,6,53,9],[53,10,53,14],[26,15,27,15],[27,9,32,14],[33,9,33,14],[34,9,39,14],[40,9,40,14],[41,9,41,14],[22,13,23,14],[23,2,23,3],[23,4,23,6],[25,2,25,14],[26,2,42,8],[26,9,26,14],[42,9,42,14],[22,2,22,3],[22,4,22,6],[22,7,23,8],[22,9,23,10],[22,11,23,12],[19,2,21,3],[19,4,21,6],[19,7,21,8],[19,9,21,10],[19,11,19,14],[16,15,17,15],[17,2,18,3],[17,4,17,5],[17,6,17,10],[17,11,18,12],[17,13,18,14],[18,4,18,5],[18,6,18,10],[16,2,16,3],[16,4,16,6],[16,7,16,8],[16,9,16,10],[16,11,16,12],[16,13,16,14],[15,2,15,14],[8,2,8,14],[9,2,10,14],[11,2,11,3],[11,4,11,7],[11,8,11,9],[11,10,11,14],[12,2,12,3],[12,4,12,14],[13,2,13,3],[13,4,13,14],[14,2,14,14],[1,1,3,2],[4,2,7,3],[4,4,4,11],[4,12,4,14],[5,4,5,11],[5,12,5,14],[6,4,7,11],[6,12,6,14],[7,12,7,14]]}
[]
[null,"      REGRESAR"]
[]
[]
[null,null,null,null,"MACROPROCESO ESTRATÉGICO",null,null,null,null,null,null,null,"CÓDIGO: ESGr027"]
[null,null,null,null,"PROCESO GESTIÓN SISTEMAS INTEGRADOS - CALIDAD",null,null,null,null,null,null,null,"VERSIÓN: 8"]
[null,null,null,null,"MATRIZ DE MEDICIÓN Y SEGUIMIENTO A LOS PROCESOS DE GESTIÓN",null,null,null,null,null,null,null,"VIGENCIA: 2023-07-28"]
[null,null,null,null,null,null,null,null,null,null,null,null,"PÁGINA: 1 de 4"]
[]
[null,null,"FICHA DE INDICADOR"]
[]
[null,null,"MACROPROCESO",null,"Apoyo",null,null,null,"NOMBRE DEL INDICADOR",null,"Eficacia en la defensa judicial de las acciones de tutela en que la Universidad es la accionada"]
[null,null,"PROCESO GESTIÓN",null,"Jurídica"]
[null,null,"RESPONSABLE DE MEDICIÓN",null,"Director(a) Jurídica"]
[]
[null,null,"1. COMPORTAMIENTO DE INDICADOR"]
[null,null,"CLASIFICACIÓN DE LA MEDICIÓN",null,1,null,null,"TIPO DE INDICADOR",null,"Eficacia",null,"META",null,0.8]
[null,null,"FORMULA",null,"NUMERADOR",null,"No.  tutelas ganadas *100 ",null,null,null,null,"UNIDAD DE MEDIDA",null,"Porcentaje"]
[null,null,null,null,"DENOMINADOR",null,"Total tutelas accionadas archivadas"]
[null,null,"TENDENCIA",null,"Positiva",null,null,"NIVEL DE SEGREGACIÓN *",null,"No Aplica",null,"ESCALA"]
[null,null,null,null,null,null,null,null,null,null,null,"Deficiente","Aceptable","Bueno","Excelente"]
[null,null,null,null,null,null,null,null,null,null,null,"0% - 40,9%","41% - 60,9%","61% - 79,9% ",">=80%"]
[null,null,"ORIGEN DE DATOS NUMERADOR",null,"Documento en Excel - AJUF013",null,null,"FRECUENCIA DE LA MEDICIÓN",null,"TRIMESTRAL",null,"FRECUENCIA DE RESULTADO",null,"TRIMESTRAL"]
[null,null,"ORIGEN DE DATOS DENOMINADOR",null,"Documento en Excel - AJUF013"]
[]
[null,null,"RESULTADOS"]
[null,null,null,null,null,null,null,null,null,"ANÁLISIS DE DATOS"]
[null,null,null,null,null,null,null,null,null,"De los datos objeto análisis, se puede concluir que, durante el cuarto trimestre del 2023, la Dirección Jurídica respondió en términos las acciones de tutela en que la institución fue accionada y logro fallos favorables para la Universidad de Cundinamarca, sin embargo, una acciones de tutela se encuentran a la espera de pronunciamiento de segunda instancias, ya que, el accionante impugno lo resuelto por fallo de primera instancia, por tanto, el resultado a la fecha es favorable en todas las tutelas."]
[]
[]
[]
[]
[]
[null,null,null,null,null,null,null,null,null,"ACCIÓN FORMULADA"]
[null,null,null,null,null,null,null,null,null,"Se da un cumplimiento del 100%, por el cual, se hace necesario recordar a los abogados de la dirección jurídica continuar con el cumplimiento de términos y oportunidad de respuesta en las acciones de tutela en que la Universidad de Cundinamarca es la accionada."]
[]
[]
[]
[]
[]
[null,null,null,null,null,null,null,null,null,"RESPONSABLE "]
[null,null,null,null,null,null,null,null,null,{"$f":"E14","v":"Director(a) Jurídica"}]
[]
[]
[null,null,"PERIODO DE EVALUACIÓN"]
[null,null,"MES",{"$f":"IF(J23=\"MENSUAL\",\"ENERO\",IF(J23=\"TRIMESTRAL\",\"MARZO\",IF(J23=\"SEMESTRAL\",\"JUNIO\",IF(J23=\"ANUAL\",YEAR(TODAY()),\"\"))))","v":"MARZO"},{"$f":"IF(J23=\"MENSUAL\",\"FEBRERO\",IF(J23=\"TRIMESTRAL\",\"JUNIO\",IF(J23=\"SEMESTRAL\",\"DICIEMBRE\",\"\")))","v":"JUNIO"},{"$f":"IF(J23=\"MENSUAL\",\"MARZO\",IF(J23=\"TRIMESTRAL\",\"SEPTIEMBRE\",\"\"))","v":"SEPTIEMBRE"},{"$f":"IF(J23=\"MENSUAL\",\"ABRIL\",IF(J23=\"TRIMESTRAL\",\"DICIEMBRE\",\"\"))","v":"DICIEMBRE"},{"$f":"IF(J23=\"MENSUAL\",\"MAYO\",\"\")","v":""},{"$f":"IF(J23=\"MENSUAL\",\"JUNIO\",\"\")","v":""},{"$f":"IF(J23=\"MENSUAL\",\"JULIO\",\"\")","v":""},{"$f":"IF(J23=\"MENSUAL\",\"AGOSTO\",\"\")","v":""},{"$f":"IF(J23=\"MENSUAL\",\"SEPTIEMBRE\",\"\")","v":""},{"$f":"IF(J23=\"MENSUAL\",\"OCTUBRE\",\"\")","v":""},{"$f":"IF(J23=\"MENSUAL\",\"NOVIEMBRE\",\"\")","v":""},{"$f":"IF(J23=\"MENSUAL\",\"DICIEMBRE\",\"\")","v":""}]
[null,null,{"$f":"G18","v":"No.  tutelas ganadas *100 "},3,7,8,4]
[null,null,{"$f":"G19","v":"Total tutelas accionadas archivadas"},3,7,9,4]
[null,null,"VALOR ",{"$f":"IFERROR(IF($E$17=1,D47/D48,IF($E$17=2,D47,\"\")),\"\")","v":1},{"$f":"IFERROR(IF($E$17=1,E47/E48,IF($E$17=2,E47,\"\")),\"\")","v":1},{"$f":"IFERROR(IF($E$17=1,F47/F48,IF($E$17=2,F47,\"\")),\"\")","v":0.88888888888888884},{"$f":"IFERROR(IF($E$17=1,G47/G48,IF($E$17=2,F47,\"\")),\"\")","v":1},{"$f":"IFERROR(IF($E$17=1,H47/H48,IF($E$17=2,H47,\"\")),\"\")","v":""},{"$f":"IFERROR(IF($E$17=1,I47/I48,IF($E$17=2,I47,\"\")),\"\")","v":""},"","","","","",""]
[null,null,"META PONDERADA",{"$f":"IF(AND(N23=\"ANUAL\",J23=\"MENSUAL\"),N17/12,IF(AND(N23=\"ANUAL\",J23=\"TRIMESTRAL\"),N17/4,IF(AND(N23=\"ANUAL\",J23=\"SEMESTRAL\"),N17/2,IF(AND(N23=\"ANUAL\",J23=\"ANUAL\"),N17,IF(AND(N23=\"SEMESTRAL\",J23=\"MENSUAL\"),N17/6,IF(AND(N23=\"SEMESTRAL\",J23=\"TRIMESTRAL\"),N17/2,IF(AND(N23=\"SEMESTRAL\",J23=\"SEMESTRAL\"),N17,IF(AND(N23=\"SEMESTRAL\",J23=\"ANUAL\"),\"REVISAR FRECUENCIAS\",IF(AND(N23=\"TRIMESTRAL\",J23=\"MENSUAL\"),N17/3,IF(AND(N23=\"TRIMESTRAL\",J23=\"TRIMESTRAL\"),N17,IF(AND(N23=\"TRIMESTRAL\",J23=\"SEMESTRAL\"),\"REVISAR FRECUENCIAS\",IF(AND(N23=\"TRIMESTRAL\",J23=\"ANUAL\"),\"REVISAR FRECUENCIAS\",IF(AND(N23=\"MENSUAL\",J23=\"MENSUAL\"),N17,IF(AND(N23=\"MENSUAL\",J23=\"TRIMESTRAL\"),\"REVISAR FRECUENCIAS\",IF(AND(N23=\"MENSUAL\",J23=\"SEMESTRAL\"),\"REVISAR FRECUENCIAS\",IF(AND(N23=\"MENSUAL\",J23=\"ANUAL\"),\"REVISAR FRECUENCIAS\",\"\"))))))))))))))))","v":0.8},{"$f":"IF(AND(N23=\"ANUAL\",J23=\"MENSUAL\"),N17/12+D50,IF(AND(N23=\"ANUAL\",J23=\"TRIMESTRAL\"),N17/4+D50,IF(AND(N23=\"ANUAL\",J23=\"SEMESTRAL\"),N17/2+D50,IF(AND(N23=\"SEMESTRAL\",J23=\"MENSUAL\"),N17/6+D50,IF(AND(N23=\"SEMESTRAL\",J23=\"TRIMESTRAL\"),N17/2+D50,IF(AND(N23=\"SEMESTRAL\",J23=\"SEMESTRAL\"),N17,IF(AND(N23=\"TRIMESTRAL\",J23=\"MENSUAL\"),N17/3+D50,IF(AND(N23=\"TRIMESTRAL\",J23=\"TRIMESTRAL\"),N17,IF(AND(N23=\"MENSUAL\",J23=\"MENSUAL\"),N17,\"\")))))))))","v":0.8},{"$f":"IF(AND(N23=\"ANUAL\",J23=\"MENSUAL\"),N17/12+E50,IF(AND(N23=\"ANUAL\",J23=\"TRIMESTRAL\"),N17/4+E50,IF(AND(N23=\"SEMESTRAL\",J23=\"MENSUAL\"),N17/6+E50,IF(AND(N23=\"SEMESTRAL\",J23=\"TRIMESTRAL\"),N17/2,IF(AND(N23=\"TRIMESTRAL\",J23=\"MENSUAL\"),N17/3+E50,IF(AND(N23=\"TRIMESTRAL\",J23=\"TRIMESTRAL\"),N17,IF(AND(N23=\"MENSUAL\",J23=\"MENSUAL\"),N17,\"\")))))))","v":0.8},{"$f":"IF(AND(N23=\"ANUAL\",J23=\"MENSUAL\"),N17/12+F50,IF(AND(N23=\"ANUAL\",J23=\"TRIMESTRAL\"),N17/4+F50,IF(AND(N23=\"SEMESTRAL\",J23=\"MENSUAL\"),N17/6+F50,IF(AND(N23=\"SEMESTRAL\",J23=\"TRIMESTRAL\"),N17/2+F50,IF(AND(N23=\"TRIMESTRAL\",J23=\"MENSUAL\"),N17/3,IF(AND(N23=\"TRIMESTRAL\",J23=\"TRIMESTRAL\"),N17,IF(AND(N23=\"MENSUAL\",J23=\"MENSUAL\"),N17,\"\")))))))","v":0.8},{"$f":"IF(AND($N$23=\"ANUAL\",$J$23=\"MENSUAL\"),$N$17/12+G50,IF(AND(N23=\"SEMESTRAL\",J23=\"MENSUAL\"),N17/6+G50,IF(AND(N23=\"TRIMESTRAL\",J23=\"MENSUAL\"),N17/3+G50,IF(AND(N23=\"MENSUAL\",J23=\"MENSUAL\"),N17,\"\"))))","v":""},{"$f":"IF(AND($N$23=\"ANUAL\",$J$23=\"MENSUAL\"),$N$17/12+H50,IF(AND(N23=\"SEMESTRAL\",J23=\"MENSUAL\"),N17/6+H50,IF(AND(N23=\"TRIMESTRAL\",J23=\"MENSUAL\"),N17/3+H50,IF(AND(N23=\"MENSUAL\",J23=\"MENSUAL\"),N17,\"\"))))","v":""},{"$f":"IF(AND($N$23=\"ANUAL\",$J$23=\"MENSUAL\"),$N$17/12+I50,IF(AND(N23=\"SEMESTRAL\",J23=\"MENSUAL\"),N17/6,IF(AND(N23=\"TRIMESTRAL\",J23=\"MENSUAL\"),N17/3,IF(AND(N23=\"MENSUAL\",J23=\"MENSUAL\"),N17,\"\"))))","v":""},{"$f":"IF(AND($N$23=\"ANUAL\",$J$23=\"MENSUAL\"),$N$17/12+J50,IF(AND(N23=\"SEMESTRAL\",J23=\"MENSUAL\"),N17/6+J50,IF(AND(N23=\"TRIMESTRAL\",J23=\"MENSUAL\"),N17/3+J50,IF(AND(N23=\"MENSUAL\",J23=\"MENSUAL\"),N17,\"\"))))","v":""},{"$f":"IF(AND($N$23=\"ANUAL\",$J$23=\"MENSUAL\"),$N$17/12+K50,IF(AND(N23=\"SEMESTRAL\",J23=\"MENSUAL\"),N17/6+K50,IF(AND(N23=\"TRIMESTRAL\",J23=\"MENSUAL\"),N17/3+K50,IF(AND(N23=\"MENSUAL\",J23=\"MENSUAL\"),N17,\"\"))))","v":""},{"$f":"IF(AND($N$23=\"ANUAL\",$J$23=\"MENSUAL\"),$N$17/12+L50,IF(AND(N23=\"SEMESTRAL\",J23=\"MENSUAL\"),N17/6+L50,IF(AND(N23=\"TRIMESTRAL\",J23=\"MENSUAL\"),N17/3,IF(AND(N23=\"MENSUAL\",J23=\"MENSUAL\"),N17,\"\"))))","v":""},{"$f":"IF(AND($N$23=\"ANUAL\",$J$23=\"MENSUAL\"),$N$17/12+M50,IF(AND(N23=\"SEMESTRAL\",J23=\"MENSUAL\"),N17/6+M50,IF(AND(N23=\"TRIMESTRAL\",J23=\"MENSUAL\"),N17/3+M50,IF(AND(N23=\"MENSUAL\",J23=\"MENSUAL\"),N17,\"\"))))","v":""},{"$f":"IF(AND($N$23=\"ANUAL\",$J$23=\"MENSUAL\"),$N$17/12+N50,IF(AND(N23=\"SEMESTRAL\",J23=\"MENSUAL\"),N17/6+N50,IF(AND(N23=\"TRIMESTRAL\",J23=\"MENSUAL\"),N17/3+N50,IF(AND(N23=\"MENSUAL\",J23=\"MENSUAL\"),N17,\"\"))))","v":""}]
[]
[null,null,"NIVEL DE SEGREGACIÓN *"]
[null,null,"UNIDAD SEGREGADA (Ej. Facultad, Programa Académico, Área)",null,null,null,"RESULTADO",null,null,null,"ANALISIS DE DATOS SEGREGADO"]
[null,null,"N/A",null,null,null,"N/A",null,null,null,"N/A"]
[null,null,"N/A",null,null,null,"N/A",null,null,null,"N/A"]
[]
[]
[]
[]
[]
[]
[]
[]
[]
[]
[]
[null,null,null,null,null,null,"Estratégico",null,null,"Eficacia"]
[null,null,null,null,null,null,"Misional",null,null,"Eficiencia"]
[null,null,null,null,null,null,"Apoyo",null,null,"Acreditación"]
[null,null,null,null,null,null,"Seguimiento, Medición, Análisis y Evaluación",null,null,"Positiva"]
[null,null,null,null,null,null,"Direccionamiento Estratégico",null,null,"Negativa"]
[null,null,null,null,null,null,"Planeación Institucional",null,null,"Por Unidad Regional"]
[null,null,null,null,null,null,"Proyectos Especiales y Relaciones Interinstitucionales",null,null,"Por Facultad"]
[null,null,null,null,null,null,"Sistemas Integrados",null,null,"Por Programa Académico"]
[null,null,null,null,null,null,"Autoevaluación y Acreditación",null,null,"Por área"]
[null,null,null,null,null,null,"Comunicaciones",null,null,"Por Laboratorio"]
[null,null,null,null,null,null,"Formación y Aprendizaje",null,null,"Otros"]
[null,null,null,null,null,null,"Ciencia, Tecnología e Innovación",null,null,"No Aplica"]
[null,null,null,null,null,null,"Interacción Social Universitaria"]
[null,null,null,null,null,null,"Bienestar Universitario"]
[null,null,null,null,null,null,"Admisiones y Registro"]
[null,null,null,null,null,null,"Graduados"]
[null,null,null,null,null,null,"Dialogando con el Mundo"]
[null,null,null,null,null,null,"Talento Humano"]
[null,null,null,null,null,null,"Jurídica"]
[null,null,null,null,null,null,"Financiera"]
[null,null,null,null,null,null,"Sistemas y Tecnología"]
[null,null,null,null,null,null,"Bienes y Servicios"]
[null,null,null,null,null,null,"Documental"]
[null,null,null,null,null,null,"Apoyo Académico"]
[null,null,null,null,null,null,"Control Interno"]
[null,null,null,null,null,null,"Control Disciplinario"]
[null,null,null,null,null,null,"Servicio de Atención al Ciudadano"]

{"sheet":"ACTUALIZACIONES","index":6,"n_rows":29,"n_cols":5,"rows_kept":29,"cut":false,"hidden":false,"merged":[[28,1,28,4],[1,1,4,1],[1,2,1,3],[2,2,2,3],[3,2,4,3],[6,1,6,4],[25,1,25,4]]}
[]
[null,null,"MACROPROCESO ESTRATÉGICO",null,"CÓDIGO: ESGr027"]
[null,null,"PROCESO GESTIÓN SISTEMAS INTEGRADOS - CALIDAD",null,"VERSIÓN: 8"]
[null,null,"MATRIZ DE MEDICIÓN Y SEGUIMIENTO A LOS PROCESOS DE GESTIÓN",null,"VIGENCIA: 2023-07-28"]
[null,null,null,null,"PÁGINA: 4 de 4"]
[]
[null,"CONTROL DE ACTUALIZACIONES"]
[null,"FECHA","DESCRIPCIÓN DE LA ACTUALIZACIÓN","RESPONSABLE","CARGO"]
[null,"2022-06-18","Oportunidad en los términos de respuesta frente a los requerimientos jurídicos (Integradoc) segundo Trimestre 2022","Manuel David Macchi Álvarez","Asesor Jurídico"]
[null,"2022-06-18","Proceso jurídico en recuperación de cartera","Manuel David Macchi Álvarez","Asesor Jurídico"]
[null,"2022-06-18","Oportunidad de respuesta en revisión de términos de referencia y minuta de contratación Publico-Privada","Manuel David Macchi Álvarez","Asesor Jurídico"]
[null,"2022-06-18","Oportunidad de respuesta en revisión minuta y garantía de contratación Directa","Manuel David Macchi Álvarez","Asesor Jurídico"]
[null,"2022-10-14","Oportunidad en los términos de respuesta frente a los requerimientos jurídicos (Integradoc) segundo Trimestre 2022","Manuel David Macchi Álvarez","Asesor Jurídico"]
[null,"2023-03-30","AJU-4: Se ajusta la fórmula en cuanto al denominador así: de Total de solicitudes recibidas a Total de solicitudes cerradas\nAJU-5: El indicador cumplió la meta establecida al último corte del año 2022, se incrementará de un 80% a un 85% para este 2023, adicional, se ajusta la fórmula en el denominador como se detalla a continuación: Total de solicitudes recibidas a Total de solicitudes cerradas\nAJU-7: Se ajusta la fórmula, en específico el denominador de la siguiente manera: pasa de Total de solicitudes allegadas como requerimientos jurídicos por Integradoc a Total de solicitudes contestadas, allegadas como requerimientos jurídicos por Integradoc.\nAJUP-8:  Se incorpora un nuevo indicador Eficacia en la defensa judicial de las acciones de tutela en que la Universidad es la accionada\nLa fórmula para medir es: (No.  tutelas ganadas/Total tutelas accionadas archivadas)*100","Jheny Lucia Cardona Ricard","Directora Jurídica"]
[null,"2023-06-01","AJU-6: Se ajusta la fórmula del indicador de la siguiente manera: Valor recuperado de cartera*100/ Valor total en Cartera.","Jheny Lucia Cardona Ricard","Directora Jurídica"]
[null,"2023-08-16","Se incorpora planificación de actividades para cada Objetivo Específico","Jheny Lucia Cardona Ricard","Directora Jurídica"]
[]
[]
[]
[]
[]
[]
[]
[]
[]
[null,"Diagonal 18 No. 20-29 Fusagasugá – Cundinamarca\nTeléfono (601)  8281483 Línea Gratuita 018000180414\nwww.ucundinamarca.edu.co   E-mail:  info@ucundinamarca.edu.co\nNIT: 890.680.062-2                                                                             "]
[]
[]
[null,"Documento controlado por el Sistema de Gestión de la Calidad\nAsegúrese que corresponde a la última versión consultando el Portal Institucional"]

{"sheet":"ITEM","index":7,"n_rows":4,"n_cols":3,"rows_kept":4,"cut":false,"hidden":true,"merged":[]}
["MENSUAL",null,"NÚMERO"]
["TRIMESTRAL",null,"PORCENTAJE"]
["SEMESTRAL"]
["ANUAL"]